Workbook

Sheet Macro security (hidden)

Sheet hidden params (hidden)
A1: PeakThreshold | B1: 1 | C1: NumAmide | D1: 24 | G1: count | H1: abundance | J1: 0.6164282512 | L1: 13C | M1: 2H | N1: 15N | O1: 18O | P1: 17O | Q1: 33S | R1: 34S | S1: 36S
A2: z | B2: 3 | C2: Penalty | D2: 1 | F2: 13C | G2: 132 | H2: 0.0107 | I2: =(((G2*12)+((G3+ $D$1)*1.00783)+(G4*14.00307)+(G5*15.99491)+(G7*31.97207)+(G10*22.98977)+(G11*30.973763))+B2-1)/B2 -> 973.2470167 | J2: 1 | K2: 0 | L2: =IF(ISNUMBER(BINOMDIST(K2, $G$2, H$2, FALSE)), (BINOMDIST(K2, $G$2, H$2, FALSE)), 0) -> 0.2417114358 | M2: =IF(ISNUMBER(BINOMDIST(K2, $G$3, H$3, FALSE)), (BINOMDIST(K2, $G$3, H$3, FALSE)), 0) -> 0.9765870749 | N2: =IF(ISNUMBER(BINOMDIST(K2, $G$4, H$4, FALSE)), (BINOMDIST(K2, $G$4, H$4, FALSE)), 0) -> 0.8597115937 | O2: =IF(ISNUMBER(BINOMDIST(K2, $G$5, H$5, FALSE)), (BINOMDIST(K2, $G$5, H$5, FALSE)), 0) -> 0.9383659871 | P2: =IF(ISNUMBER(BINOMDIST(K2, $G$5, H$6, FALSE)), (BINOMDIST(K2, $G$5, H$6, FALSE)), 0) -> 0.9882869 | Q2: =IF(ISNUMBER(BINOMDIST(K2, $G$7, H$7, FALSE)), (BINOMDIST(K2, $G$7, H$7, FALSE)), 0) -> 0.9924 | R2: =IF(ISNUMBER(BINOMDIST(K2, $G$7, H$8, FALSE)), (BINOMDIST(K2, $G$7, H$8, FALSE)), 0) -> 0.9571 | S2: =IF(ISNUMBER(BINOMDIST(K2, $G$7, H$9, FALSE)), (BINOMDIST(K2, $G$7, H$9, FALSE)), 0) -> 0.9998
A3: PeakToler | B3: 6 | C3: BimodalType | D3: Single | F3: 1H (-NH) | G3: 206 | H3: 0.000115 | J3: 0.8731803741 | K3: 1 | L3: 0.3450856484 | M3: 0.02313800867 | N3: 0.1301923933 | O3: 0 | P3: 0.01164644533 | Q3: 0.0076 | R3: 0 | S3: 0
A4: EnvHeight | B4: 10 | C4: UsePepSequence | D4: TRUE | F4: 15N | G4: 41 | H4: 0.00368 | J4: 0.5393202526 | K4: 2 | L4: 0.244469096 | M4: 0.0002727706459 | N4: 0.009617552738 | O4: =IF(ISNUMBER(BINOMDIST(K3, $G$5, H$5, FALSE)), (BINOMDIST(K3, $G$5, H$5, FALSE)), 0) -> 0.05975565758 | P4: 6.640997418e-05 | Q4: 0 | R4: =IF(ISNUMBER(BINOMDIST(K3, $G$7, H$8, FALSE)), (BINOMDIST(K3, $G$7, H$8, FALSE)), 0) -> 0.0429 | S4: =IF(ISNUMBER(BINOMDIST(K3, $G$7, H$9, FALSE)), (BINOMDIST(K3, $G$7, H$9, FALSE)), 0) -> 0.0002
A5: UseIsoPeaks | B5: TRUE | C5: PepSequence | D5: YKYKVVKIEPLGVAPTRCKRRVVGR | F5: 16O | G5: 31 | H5: 0.00205 | J5: 0.2620620774 | K5: 3 | L5: 0.1145781571 | M5: 2.133311782e-06 | N5: 0.0004618031586 | O5: 0 | P5: 2.440387065e-07 | Q5: 0 | R5: 0 | S5: 0
A6: DPlotType | B6: relD | C6: Glycosylation | D6: FALSE | F6: 17O | H6: 0.00038 | J6: 0.1059166387 | K6: 4 | L6: 0.03996569046 | M6: 1.245197286e-08 | N6: 1.620427014e-05 | O6: =IF(ISNUMBER(BINOMDIST(K4, $G$5, H$5, FALSE)), (BINOMDIST(K4, $G$5, H$5, FALSE)), 0) -> 0.001841261056 | P6: 6.493897275e-10 | Q6: 0 | R6: =IF(ISNUMBER(BINOMDIST(K4, $G$7, H$8, FALSE)), (BINOMDIST(K4, $G$7, H$8, FALSE)), 0) -> 0 | S6: =IF(ISNUMBER(BINOMDIST(K4, $G$7, H$9, FALSE)), (BINOMDIST(K4, $G$7, H$9, FALSE)), 0) -> 0
A7: TimeUnit | B7: min | C7: Hex | D7: 9 | F7: 33S | G7: 1 | H7: 0.0076 | J7: 0.03684182159 | K7: 5 | L7: 0.01106580606 | M7: 5.785851965e-11 | N7: 4.429045733e-07 | O7: 0 | P7: 1.333054281e-12 | Q7: 0 | R7: 0 | S7: 0
A8: WidthPlot | B8: TRUE | C8: HexNAc | D8: 2 | F8: 34S | H8: 0.0429 | J8: 0.01128682533 | K8: 6 | L8: 0.002533327243 | M8: 2.229255834e-13 | N8: 9.815453848e-09 | O8: =IF(ISNUMBER(BINOMDIST(K5, $G$5, H$5, FALSE)), (BINOMDIST(K5, $G$5, H$5, FALSE)), 0) -> 3.656260994e-05 | P8: 2.195930504e-15 | Q8: 0 | R8: =IF(ISNUMBER(BINOMDIST(K5, $G$7, H$8, FALSE)), (BINOMDIST(K5, $G$7, H$8, FALSE)), 0) -> 0 | S8: =IF(ISNUMBER(BINOMDIST(K5, $G$7, H$9, FALSE)), (BINOMDIST(K5, $G$7, H$9, FALSE)), 0) -> 0
A9: Smoothing | B9: TRUE | C9: DeoxyHex | D9: 0 | F9: 36S | H9: 0.0002 | J9: 0.003097054662 | K9: 7 | L9: 0.0004931960245 | M9: 7.325540177e-16 | N9: 1.812714297e-10 | O9: 0 | P9: 2.981324301e-18 | Q9: 0 | R9: 0 | S9: 0
C10: NeuAc | D10: 0 | F10: 23Na | G10: 0 | J10: 0.0007709761029 | K10: 8 | L10: 8.334803431e-05 | M10: 2.095803354e-18 | N10: 2.845556809e-12 | O10: =IF(ISNUMBER(BINOMDIST(K6, $G$5, H$5, FALSE)), (BINOMDIST(K6, $G$5, H$5, FALSE)), 0) -> 5.257512427e-07 | P10: 3.400001704e-21 | Q10: 0 | R10: =IF(ISNUMBER(BINOMDIST(K6, $G$7, H$8, FALSE)), (BINOMDIST(K6, $G$7, H$8, FALSE)), 0) -> 0 | S10: =IF(ISNUMBER(BINOMDIST(K6, $G$7, H$9, FALSE)), (BINOMDIST(K6, $G$7, H$9, FALSE)), 0) -> 0
C11: MZThreshold | D11: 0 | F11: 31P | G11: 0 | J11: 0.0001758959809 | K11: 9 | L11: 1.24202491e-05 | M11: 5.30299233e-21 | N11: 3.853786589e-14 | O11: 0 | P11: 3.303034585e-24 | Q11: 0 | R11: 0 | S11: 0
C12: Resolution | D12: 0 | J12: 3.708319358e-05 | K12: 10 | L12: 1.652308687e-06 | M12: 1.201531089e-23 | N12: 4.554981419e-16 | O12: =IF(ISNUMBER(BINOMDIST(K7, $G$5, H$5, FALSE)), (BINOMDIST(K7, $G$5, H$5, FALSE)), 0) -> 5.832021901e-09 | P12: 2.76238662e-27 | Q12: 0 | R12: =IF(ISNUMBER(BINOMDIST(K7, $G$7, H$8, FALSE)), (BINOMDIST(K7, $G$7, H$8, FALSE)), 0) -> 0 | S12: =IF(ISNUMBER(BINOMDIST(K7, $G$7, H$9, FALSE)), (BINOMDIST(K7, $G$7, H$9, FALSE)), 0) -> 0
C13: AutoAssymetry | D13: FALSE | J13: 7.274058225e-06 | K13: 11 | L13: 1.982047692e-07 | M13: 2.462329598e-26 | N13: 4.741378092e-18 | O13: 0 | P13: 2.004747734e-30 | Q13: 0 | R13: 0 | S13: 0
C14: AutoClean | D14: TRUE | J14: 1.335240228e-06 | K14: 12 | L14: 2.161593338e-08 | M14: 4.602007668e-29 | N14: 4.378179545e-20 | O14: =IF(ISNUMBER(BINOMDIST(K8, $G$5, H$5, FALSE)), (BINOMDIST(K8, $G$5, H$5, FALSE)), 0) -> 5.19142187e-11 | P14: 1.270156224e-33 | Q14: 0 | R14: =IF(ISNUMBER(BINOMDIST(K8, $G$7, H$8, FALSE)), (BINOMDIST(K8, $G$7, H$8, FALSE)), 0) -> 0 | S14: =IF(ISNUMBER(BINOMDIST(K8, $G$7, H$9, FALSE)), (BINOMDIST(K8, $G$7, H$9, FALSE)), 0) -> 0
C15: CustomMod | D15: FALSE | J15: 2.304952462e-07 | K15: 13 | L15: 2.158080575e-09 | M15: 7.898661505e-32 | N15: 3.607423944e-22 | O15: 0 | P15: 7.056933896e-37 | Q15: 0 | R15: 0 | S15: 0
C16: CustomModString | J16: 3.725606846e-08 | K16: 14 | L16: 1.984003116e-10 | M16: 1.252363965e-34 | N16: 2.664870747e-24 | O16: =IF(ISNUMBER(BINOMDIST(K12, $G$5, H$5, FALSE)), (BINOMDIST(K12, $G$5, H$5, FALSE)), 0) -> 5.568495427e-20 | P16: 3.449126943e-40 | Q16: 0 | R16: =IF(ISNUMBER(BINOMDIST(K9, $G$7, H$8, FALSE)), (BINOMDIST(K9, $G$7, H$8, FALSE)), 0) -> 0 | S16: =IF(ISNUMBER(BINOMDIST(K9, $G$7, H$9, FALSE)), (BINOMDIST(K9, $G$7, H$9, FALSE)), 0) -> 0
C17: AllAmideSeek | D17: FALSE | J17: 0 | K17: 15 | L17: 1.688063839e-11 | M17: 1.843691782e-37 | N17: 1.77173035e-26 | O17: 0 | P17: 1.485988679e-43 | Q17: 0 | R17: 0 | S17: 0
S18: 13C & 2H
A19: Atom | B19: object | D19: response | F19: product | H19: convolution
B20: =L2 -> 0.2417114358 | C20: 0.999999999999999 | D20: =M2 -> 0.9765870749 | E20: 1 | F20: =IMPRODUCT(C20,E20,D$36) -> 0.999999999999999 | G20: 0.737031526341354 | H20: =IMABS(G20) -> 0.7370315263 | I20: 0.95
B21: 0.3450856484 | C21: 0.971244005963731-0.111936871785306i | D21: 0.02313800867 | E21: 0.999701325741658-1.49585952651322E-003i | F21: 0.970786478544553-0.113356283722034i | G21: 0.226085041210739 | H21: 0.2260850412 | I21: 24
B22: 0.244469096 | C22: 0.895982255765822-0.193325249191129i | D22: 0.0002727706459 | E22: 0.998851718140545-2.76171281213454E-003i | F22: 0.894419506777532-0.195577702989702i | G22: 3.34686715752665E-002 | H22: 0.03346867158
B23: 0.1145781571 | C23: 0.799711504603719-0.228770941873885i | D23: 2.133311782e-06 | E23: 0.99758279906872-3.60390866063402E-003i | F23: 0.796953971631315-0.231100043757588i | G23: 3.18400798653603E-003 | H23: 0.003184007987
B24: 0.03996569046 | C24: 0.707407933154143-0.221021275793877i | D24: 1.245197286e-08 | E24: 0.99609001816941-3.89517975180964E-003i | F24: 0.703781063390504-0.222912567678841i | G24: 2.18696107615802E-004 | H24: 0.0002186961076
B25: 0.01106580606 | C25: 0.63385705089905-0.182914612132803i | D25: 5.785851965e-11 | E25: 0.994601567370214-3.59345485135308E-003i | F25: 0.629777920912505-0.184204896616818i | G25: 1.15513714065139E-005 | H25: 1.155137141e-05
B26: 0.002533327243 | C26: 0.583441369066268-0.127890014615315i | D26: 2.229255834e-13 | E26: 0.99334310210767-2.74692887040808E-003i | F26: 0.579206154672849-0.128641335787451i | G26: 4.87974396524446E-007 | H26: 4.879743965e-07
B27: 0.0004931960245 | C27: 0.554863945732017-6.52512810646739E-002i | D27: 7.325540177e-16 | E27: 0.99250394834817-1.48540568489925E-003i | F27: 0.550607732311231-0.065586352150801i | G27: 1.69288681080196E-008 | H27: 1.692886811e-08
B28: 8.334803431e-05 | C28: 0.545689905314996 | D28: 2.095803354e-18 | E28: 0.992209604222273 | F28: 0.541438764980682 | G28: 4.9145260083705E-010 | H28: 4.914526008e-10
B29: 1.24202491e-05 | C29: 0.554863945732017+6.52512810646741E-002i | D29: 5.30299233e-21 | E29: 0.99250394834817+1.48540568489926E-003i | F29: 0.550607732311231+0.0655863521508012i | G29: 0 | H29: 0
B30: 1.652308687e-06 | C30: 0.583441369066268+0.127890014615315i | D30: 1.201531089e-23 | E30: 0.99334310210767+2.74692887040809E-003i | F30: 0.579206154672849+0.128641335787451i | G30: 0 | H30: 0
B31: 1.982047692e-07 | C31: 0.63385705089905+0.182914612132803i | D31: 2.462329598e-26 | E31: 0.994601567370214+3.59345485135309E-003i | F31: 0.629777920912505+0.184204896616818i | G31: 0 | H31: 0
B32: 2.161593338e-08 | C32: 0.707407933154143+0.221021275793877i | D32: 4.602007668e-29 | E32: 0.99609001816941+3.89517975180964E-003i | F32: 0.703781063390504+0.222912567678841i | G32: 0 | H32: 0
B33: 2.158080575e-09 | C33: 0.79971150460372+0.228770941873885i | D33: 7.898661505e-32 | E33: 0.99758279906872+3.60390866063402E-003i | F33: 0.796953971631316+0.231100043757588i | G33: 0 | H33: 0
B34: 1.984003116e-10 | C34: 0.895982255765822+0.193325249191129i | D34: 1.252363965e-34 | E34: 0.998851718140545+2.76171281213453E-003i | F34: 0.894419506777532+0.195577702989702i | G34: 0 | H34: 0
B35: 1.688063839e-11 | C35: 0.971244005963731+0.111936871785306i | D35: 1.843691782e-37 | E35: 0.999701325741658+1.49585952651321E-003i | F35: 0.970786478544553+0.113356283722034i | G35: 0 | H35: 0
D36: =1/IMSUM(D20:D35) -> 1
A37: add 15N
B38: =H20 -> 0.7370315263 | C38: 0.999999999987635 | D38: =N2 -> 0.8597115937 | E38: 1 | F38: =IMPRODUCT(C38,E38,D$54) -> 0.999999999987635 | G38: 0.723569591382177 | H38: =IMABS(G38) -> 0.7235695914
B39: 0.2260850412 | C39: 0.970786478555918-0.113356283726851i | D39: 0.1301923933 | E39: 0.998580352165076-7.03346074272317E-003i | F39: 0.968611016661929-0.120023346310573i | G39: 0.235318437119175 | H39: 0.2353184371
B40: 0.03346867158 | C40: 0.894419506768976-0.195577702980884i | D40: 0.009617552738 | E40: 0.994554876743801-1.29545851258396E-002i | F40: 0.887015654309888-0.206099591920639i | G40: 3.70551449805646E-002 | H40: 0.03705514498
B41: 0.003184007987 | C41: 0.796953971635763-0.231100043768949i | D41: 0.0004618031586 | E41: 0.988578060435273-1.68450460691516E-002i | F41: 0.783958320651999-0.241885159402812i | G41: 3.763305573179E-003 | H41: 0.003763305573
B42: 0.0002186961076 | C42: 0.703781063390759-0.222912567666741i | D42: 1.620427014e-05 | E42: 0.981600993055408-1.81301487179404E-002i | F42: 0.686790752715064-0.231570853130349i | G42: 2.77024844941452E-004 | H42: 0.0002770248449
B43: 1.155137141e-05 | C43: 0.629777920907697-0.184204896627818i | D43: 4.429045733e-07 | E43: 0.974702380811688-1.6655636031354E-002i | F43: 0.610777989177941-0.190034303131527i | G43: 1.57486981212668E-005 | H43: 1.574869812e-05
B44: 4.879743965e-07 | C44: 0.579206154681405-0.128641335779144i | D44: 9.815453848e-09 | E44: 0.968914974540958-1.26867162974617E-002i | F44: 0.559569480485943-0.131990740743551i | G44: 7.19392095054001E-007 | H44: 7.193920951e-07
B45: 1.692886811e-08 | C45: 0.550607732300228-6.55863521552565E-002i | D45: 1.812714297e-10 | E45: 0.965078912811915-6.84404705049167E-003i | F45: 0.530931035594117-0.0670643906595216i | G45: 2.71251972712401E-008 | H45: 2.712519727e-08
B46: 4.914526008e-10 | C46: 0.541438764992536 | D46: 2.845556809e-12 | E46: 0.963737723767571 | F46: 0.521804962933431 | G46: 8.60680415826209E-010 | H46: 8.606804158e-10
B47: 0 | C47: 0.550607732300228+6.55863521552568E-002i | D47: 3.853786589e-14 | E47: 0.965078912811915+6.8440470504917E-003i | F47: 0.530931035594117+0.0670643906595219i | G47: 0 | H47: 0
B48: 0 | C48: 0.579206154681405+0.128641335779144i | D48: 4.554981419e-16 | E48: 0.968914974540958+1.26867162974618E-002i | F48: 0.559569480485943+0.131990740743551i | G48: 0 | H48: 0
B49: 0 | C49: 0.629777920907697+0.184204896627818i | D49: 4.741378092e-18 | E49: 0.974702380811688+1.6655636031354E-002i | F49: 0.610777989177941+0.190034303131527i | G49: 0 | H49: 0
B50: 0 | C50: 0.70378106339076+0.222912567666741i | D50: 4.378179545e-20 | E50: 0.981600993055408+1.81301487179404E-002i | F50: 0.686790752715065+0.231570853130349i | G50: 0 | H50: 0
B51: 0 | C51: 0.796953971635763+0.231100043768949i | D51: 3.607423944e-22 | E51: 0.988578060435273+1.68450460691515E-002i | F51: 0.783958320651999+0.241885159402812i | G51: 0 | H51: 0
B52: 0 | C52: 0.894419506768977+0.195577702980884i | D52: 2.664870747e-24 | E52: 0.994554876743801+1.29545851258396E-002i | F52: 0.887015654309889+0.206099591920639i | G52: 0 | H52: 0
B53: 0 | C53: 0.970786478555918+0.11335628372685i | D53: 1.77173035e-26 | E53: 0.998580352165076+7.03346074272315E-003i | F53: 0.968611016661929+0.120023346310572i | G53: 0 | H53: 0
D54: 1
A55: add 17O
B56: =H38 -> 0.7235695914 | C56: 0.999999999976131 | D56: =P2 -> 0.9882869 | E56: 1 | F56: =IMPRODUCT(C56,E56,D$72) -> 0.999999999976131 | G56: 0.721647089032427 | H56: =IMABS(G56) -> 0.721647089
B57: 0.2353184371 | C57: 0.968611016672542-0.120023346315i | D57: 0.01164644533 | E57: 0.999797093105887-1.01776116737029E-003i | F57: 0.968292323718488-0.120984807429635i | G57: 0.236613514179301 | H57: 0.2366135142
B58: 0.03705514498 | C58: 0.887015654301807-0.206099591912483i | D58: 6.640997418e-05 | E58: 0.999219648772255-1.87964764749095E-003i | F58: 0.885936075933856-0.207606038730792i | G58: 3.75834018151006E-002 | H58: 0.03758340182
B59: 0.003763305573 | C59: 0.78395832065632-0.241885159413425i | D59: 2.440387065e-07 | E59: 0.998356507784263-2.45406115727889E-003i | F59: 0.78207629028462-0.243411504700475i | G59: 3.85236236434614E-003 | H59: 0.003852362364
B60: 0.0002770248449 | C60: 0.686790752715139-0.23157085311892i | D60: 6.493897275e-10 | E60: 0.997340003838121-2.65393904103933E-003i | F60: 0.684349317021044-0.232777576330076i | G60: 2.86388993635643E-004 | H60: 0.0002863889936
B61: 1.574869812e-05 | C61: 0.610777989173514-0.190034303142034i | D61: 1.333054281e-12 | E61: 0.996325272856835-2.44978083941638E-003i | F61: 0.608068004323581-0.19083225114516i | G61: 1.64535233035857E-005 | H61: 1.64535233e-05
B62: 7.193920951e-07 | C62: 0.559569480494025-0.131990740735544i | D62: 2.195930504e-15 | E62: 0.995466412186706-1.8735943618567E-003i | F62: 0.556785326008907-0.132440755345598i | G62: 7.60122506004097E-007 | H62: 7.60122506e-07
B63: 2.712519727e-08 | C63: 0.53093103558361-6.70643906638434E-002i | D63: 2.981324301e-18 | E63: 0.994893248173853-1.01348084659192E-003i | F63: 0.528151734072659-0.0672599978997766i | G63: 2.90105502942056E-008 | H63: 2.901055029e-08
B64: 8.606804158e-10 | C64: 0.521804962944786 | D64: 3.400001704e-21 | E64: 0.994692114247511 | F64: 0.519035281816393 | G64: 9.32590060731542E-010 | H64: 9.325900607e-10
B65: 0 | C65: 0.53093103558361+6.70643906638436E-002i | D65: 3.303034585e-24 | E65: 0.994893248173853+1.01348084659193E-003i | F65: 0.528151734072659+0.0672599978997768i | G65: 0 | H65: 0
B66: 0 | C66: 0.559569480494025+0.131990740735544i | D66: 2.76238662e-27 | E66: 0.995466412186706+1.8735943618567E-003i | F66: 0.556785326008907+0.132440755345598i | G66: 0 | H66: 0
B67: 0 | C67: 0.610777989173515+0.190034303142034i | D67: 2.004747734e-30 | E67: 0.996325272856835+2.44978083941638E-003i | F67: 0.608068004323582+0.19083225114516i | G67: 0 | H67: 0
B68: 0 | C68: 0.686790752715139+0.23157085311892i | D68: 1.270156224e-33 | E68: 0.997340003838121+2.65393904103933E-003i | F68: 0.684349317021044+0.232777576330076i | G68: 0 | H68: 0
B69: 0 | C69: 0.783958320656321+0.241885159413425i | D69: 7.056933896e-37 | E69: 0.998356507784263+2.45406115727888E-003i | F69: 0.782076290284621+0.243411504700475i | G69: 0 | H69: 0
B70: 0 | C70: 0.887015654301808+0.206099591912483i | D70: 3.449126943e-40 | E70: 0.999219648772255+1.87964764749095E-003i | F70: 0.885936075933857+0.207606038730792i | G70: 0 | H70: 0
B71: 0 | C71: 0.968611016672542+0.120023346314999i | D71: 1.485988679e-43 | E71: 0.999797093105887+1.01776116737029E-003i | F71: 0.968292323718488+0.120984807429634i | G71: 0 | H71: 0
D72: 1
A73: add 18O
B74: =H56 -> 0.721647089 | C74: 0.99999999997376 | D74: =O2 -> 0.9383659871 | E74: 1 | F74: =IMPRODUCT(C74,E74,D$90) -> 0.99999999997376 | G74: 0.711354923312268 | H74: =IMABS(G74) -> 0.7113549233
B75: 0.2366135142 | C75: 0.968292323720676-0.120984807430542i | D75: 0 | E75: 0.995760551824986-1.01103754053858E-002i | F75: 0.962964096774527-0.130261697504446i | G75: 0.233238920785142 | H75: 0.2332389208
B76: 0.03758340182 | C76: 0.885936075932182-0.207606038729115i | D76: 0.05975565758 | E76: 0.98565060058925-1.41740980557129E-002i | F76: 0.870280796976334-0.217184361570664i | G76: 4.72762979389181E-002 | H76: 0.04727629794
B77: 0.003852362364 | C77: 0.782076290285524-0.243411504702664i | D77: 0 | E77: 0.975715350122332-9.93567217920472E-003i | F77: 0.760665384482942-0.245270795174169i | G77: 7.15127369959539E-003 | H77: 0.0071512737
B78: 0.0002863889936 | C78: 0.684349317021046-0.232777576327708i | D78: 0.001841261056 | E78: 0.971650607630867 | F78: 0.664948429715268-0.226178473481658i | G78: 8.7806359967769E-004 | H78: 0.0008780635997
B79: 1.64535233e-05 | C79: 0.608068004322673-0.190832251147345i | D79: 0 | E79: 0.975715350122332+9.93567217920473E-003i | F79: 0.595197332424504-0.180156392389251i | G79: 9.14923485004483E-005 | H79: 9.14923485e-05
B80: 7.60122506e-07 | C80: 0.556785326010581-0.132440755343926i | D80: 3.656260994e-05 | E80: 0.98565060058925+1.41740980557129E-002i | F80: 0.550673019234428-0.122648380240379i | G80: 8.30746267555225E-006 | H80: 8.307462676e-06
B81: 2.901055029e-08 | C81: 0.528151734070473-6.72599979006809E-002i | D81: 0 | E81: 0.995760551824986+1.01103754053858E-002i | F81: 0.526592685993879-0.0616350403228714i | G81: 6.69088325431163E-007 | H81: 6.690883254e-07
B82: 9.325900607e-10 | C82: 0.519035281818758 | D82: 5.257512427e-07 | E82: 1 | F82: 0.519035281818758 | G82: 4.83933045303253E-008 | H82: 4.839330453e-08
B83: 0 | C83: 0.528151734070473+6.72599979006812E-002i | D83: 0 | E83: 0.995760551824986-1.01103754053858E-002i | F83: 0.526592685993879+0.0616350403228717i | G83: 3.14591494521288E-009 | H83: 3.145914945e-09
B84: 0 | C84: 0.556785326010581+0.132440755343926i | D84: 5.832021901e-09 | E84: 0.98565060058925-1.41740980557129E-002i | F84: 0.550673019234428+0.122648380240379i | G84: 1.88900915742973E-010 | H84: 1.889009157e-10
B85: 0 | C85: 0.608068004322674+0.190832251147345i | D85: 0 | E85: 0.975715350122332-9.93567217920472E-003i | F85: 0.595197332424505+0.180156392389251i | G85: 0 | H85: 0
B86: 0 | C86: 0.684349317021046+0.232777576327708i | D86: 5.19142187e-11 | E86: 0.971650607630867 | F86: 0.664948429715268+0.226178473481658i | G86: 0 | H86: 0
B87: 0 | C87: 0.782076290285525+0.243411504702664i | D87: 0 | E87: 0.975715350122332+9.93567217920473E-003i | F87: 0.760665384482943+0.245270795174169i | G87: 0 | H87: 0
B88: 0 | C88: 0.885936075932182+0.207606038729115i | D88: 5.568495427e-20 | E88: 0.98565060058925+1.41740980557129E-002i | F88: 0.870280796976334+0.217184361570664i | G88: 0 | H88: 0
B89: 0 | C89: 0.968292323720676+0.120984807430542i | D89: 0 | E89: 0.995760551824986+1.01103754053858E-002i | F89: 0.962964096774527+0.130261697504446i | G89: 0 | H89: 0
D90: 1
A91: add 34S
B92: =H74 -> 0.7113549233 | C92: 0.999999999963223 | D92: =R2 -> 0.9571 | E92: 1 | F92: =IMPRODUCT(C92,E92,D$108) -> 0.999999999963223 | G92: 0.711354923312268 | H92: =IMABS(G92) -> 0.7113549233
B93: 0.2332389208 | C93: 0.962964096778345-0.13026169751422i | D93: 0 | E93: 1 | F93: 0.962964096778345-0.13026169751422i | G93: 0.233238920785142 | H93: 0.2332389208
B94: 0.04727629794 | C94: 0.870280796983934-0.217184361563609i | D94: 0.0429 | E94: 1 | F94: 0.870280796983934-0.217184361563609i | G94: 4.7276297938918E-002 | H94: 0.04727629794
B95: 0.0071512737 | C95: 0.760665384473724-0.24527079516982i | D95: 0 | E95: 1 | F95: 0.760665384473724-0.24527079516982i | G95: 7.15127369959536E-003 | H95: 0.0071512737
B96: 0.0008780635997 | C96: 0.664948429714755-0.226178473491637i | D96: 0 | E96: 1 | F96: 0.664948429714755-0.226178473491637i | G96: 8.78063599677644E-004 | H96: 0.0008780635997
B97: 9.14923485e-05 | C97: 0.595197332433725-0.180156392385928i | D97: 0 | E97: 1 | F97: 0.595197332433725-0.180156392385928i | G97: 9.14923485005427E-005 | H97: 9.14923485e-05
B98: 8.307462676e-06 | C98: 0.550673019227855-0.122648380233321i | D98: 0 | E98: 1 | F98: 0.550673019227855-0.122648380233321i | G98: 8.3074626755535E-006 | H98: 8.307462676e-06
B99: 6.690883254e-07 | C99: 0.52659268599006-6.16350403316165E-002i | D99: 0 | E99: 1 | F99: 0.52659268599006-0.0616350403316165i | G99: 6.69088325365398E-007 | H99: 6.690883254e-07
B100: 4.839330453e-08 | C100: 0.519035281828266 | D100: 0 | E100: 1 | F100: 0.519035281828266 | G100: 4.8393304419303E-008 | H100: 4.839330442e-08
B101: 3.145914945e-09 | C101: 0.52659268599006+6.16350403316168E-002i | D101: 0 | E101: 1 | F101: 0.52659268599006+0.0616350403316168i | G101: 3.14591505623518E-009 | H101: 3.145915056e-09
B102: 1.889009157e-10 | C102: 0.550673019227855+0.122648380233322i | D102: 0 | E102: 1 | F102: 0.550673019227855+0.122648380233322i | G102: 1.88900995540253E-010 | H102: 1.889009955e-10
B103: 0 | C103: 0.595197332433725+0.180156392385928i | D103: 0 | E103: 1 | F103: 0.595197332433725+0.180156392385928i | G103: 0 | H103: 0
B104: 0 | C104: 0.664948429714756+0.226178473491637i | D104: 0 | E104: 1 | F104: 0.664948429714756+0.226178473491637i | G104: 0 | H104: 0
B105: 0 | C105: 0.760665384473724+0.24527079516982i | D105: 0 | E105: 1 | F105: 0.760665384473724+0.24527079516982i | G105: 0 | H105: 0
B106: 0 | C106: 0.870280796983935+0.217184361563608i | D106: 0 | E106: 1 | F106: 0.870280796983935+0.217184361563608i | G106: 0 | H106: 0
B107: 0 | C107: 0.962964096778345+0.130261697514219i | D107: 0 | E107: 1 | F107: 0.962964096778345+0.130261697514219i | G107: 0 | H107: 0
D108: 1
A109: add 33S
B110: =H92 -> 0.7113549233 | C110: 0.999999999963223 | D110: =Q2 -> 0.9924 | E110: 1 | F110: =IMPRODUCT(C110,E110,D$126) -> 0.999999999963223 | G110: 0.711354923312268 | H110: =IMABS(G110) -> 0.7113549233
B111: 0.2332389208 | C111: 0.962964096778345-0.13026169751422i | D111: 0.0076 | E111: 1 | F111: 0.962964096778345-0.13026169751422i | G111: 0.233238920785142 | H111: 0.2332389208
B112: 0.04727629794 | C112: 0.870280796983934-0.217184361563609i | D112: 0 | E112: 1 | F112: 0.870280796983934-0.217184361563609i | G112: 4.72762979389179E-002 | H112: 0.04727629794
B113: 0.0071512737 | C113: 0.760665384473724-0.24527079516982i | D113: 0 | E113: 1 | F113: 0.760665384473724-0.24527079516982i | G113: 7.15127369959546E-003 | H113: 0.0071512737
B114: 0.0008780635997 | C114: 0.664948429714755-0.226178473491637i | D114: 0 | E114: 1 | F114: 0.664948429714755-0.226178473491637i | G114: 8.78063599677679E-004 | H114: 0.0008780635997
B115: 9.14923485e-05 | C115: 0.595197332433725-0.180156392385928i | D115: 0 | E115: 1 | F115: 0.595197332433725-0.180156392385928i | G115: 9.14923485005571E-005 | H115: 9.14923485e-05
B116: 8.307462676e-06 | C116: 0.550673019227855-0.122648380233322i | D116: 0 | E116: 1 | F116: 0.550673019227855-0.122648380233322i | G116: 8.30746267560246E-006 | H116: 8.307462676e-06
B117: 6.690883254e-07 | C117: 0.52659268599006-6.16350403316167E-002i | D117: 0 | E117: 1 | F117: 0.52659268599006-0.0616350403316167i | G117: 6.69088325284997E-007 | H117: 6.690883253e-07
B118: 4.839330442e-08 | C118: 0.519035281828266 | D118: 0 | E118: 1 | F118: 0.519035281828266 | G118: 4.83933043637919E-008 | H118: 4.839330436e-08
B119: 3.145915056e-09 | C119: 0.52659268599006+6.16350403316169E-002i | D119: 0 | E119: 1 | F119: 0.52659268599006+0.0616350403316169i | G119: 3.14591508399076E-009 | H119: 3.145915084e-09
B120: 1.889009955e-10 | C120: 0.550673019227855+0.122648380233322i | D120: 0 | E120: 1 | F120: 0.550673019227855+0.122648380233322i | G120: 1.88900943498549E-010 | H120: 1.889009435e-10
B121: 0 | C121: 0.595197332433725+0.180156392385928i | D121: 0 | E121: 1 | F121: 0.595197332433725+0.180156392385928i | G121: 0 | H121: 0
B122: 0 | C122: 0.664948429714756+0.226178473491637i | D122: 0 | E122: 1 | F122: 0.664948429714756+0.226178473491637i | G122: 0 | H122: 0
B123: 0 | C123: 0.760665384473724+0.24527079516982i | D123: 0 | E123: 1 | F123: 0.760665384473724+0.24527079516982i | G123: 0 | H123: 0
B124: 0 | C124: 0.870280796983934+0.217184361563608i | D124: 0 | E124: 1 | F124: 0.870280796983934+0.217184361563608i | G124: 0 | H124: 0
B125: 0 | C125: 0.962964096778345+0.130261697514219i | D125: 0 | E125: 1 | F125: 0.962964096778345+0.130261697514219i | G125: 0 | H125: 0
D126: 1
A127: add 36S
B128: =H110 -> 0.7113549233 | C128: 0.999999999963223 | D128: =S2 -> 0.9998 | E128: 1 | F128: =IMPRODUCT(C128,E128,D$144) -> 0.999999999963223 | G128: 0.711354923312268 | H128: =IMABS(G128) -> 0.7113549233 | I128: =H128/(MAX(H$128:H$143)) -> 1
B129: 0.2332389208 | C129: 0.962964096778345-0.13026169751422i | D129: 0 | E129: 1 | F129: 0.962964096778345-0.13026169751422i | G129: 0.233238920785142 | H129: 0.2332389208 | I129: 0.3278798152
B130: 0.04727629794 | C130: 0.870280796983934-0.217184361563609i | D130: 0.0002 | E130: 1 | F130: 0.870280796983934-0.217184361563609i | G130: 4.72762979389179E-002 | H130: 0.04727629794 | I130: 0.06645950761
B131: 0.0071512737 | C131: 0.760665384473724-0.24527079516982i | D131: 0 | E131: 1 | F131: 0.760665384473724-0.24527079516982i | G131: 7.15127369959546E-003 | H131: 0.0071512737 | I131: 0.01005303185
B132: 0.0008780635997 | C132: 0.664948429714755-0.226178473491637i | D132: 0 | E132: 1 | F132: 0.664948429714755-0.226178473491637i | G132: 8.78063599677679E-004 | H132: 0.0008780635997 | I132: 0.001234353725
B133: 9.14923485e-05 | C133: 0.595197332433725-0.180156392385928i | D133: 0 | E133: 1 | F133: 0.595197332433725-0.180156392385928i | G133: 9.14923485005571E-005 | H133: 9.14923485e-05 | I133: 0.0001286170173
B134: 8.307462676e-06 | C134: 0.550673019227855-0.122648380233322i | D134: 0 | E134: 1 | F134: 0.550673019227855-0.122648380233322i | G134: 8.30746267560246E-006 | H134: 8.307462676e-06 | I134: 1.167836533e-05
B135: 6.690883253e-07 | C135: 0.52659268599006-6.16350403316167E-002i | D135: 0 | E135: 1 | F135: 0.52659268599006-0.0616350403316167i | G135: 6.69088325284997E-007 | H135: 6.690883253e-07 | I135: 9.405829683e-07
B136: 4.839330436e-08 | C136: 0.519035281828266 | D136: 0 | E136: 1 | F136: 0.519035281828266 | G136: 4.83933043637919E-008 | H136: 4.839330436e-08 | I136: 6.802975952e-08
B137: 3.145915084e-09 | C137: 0.52659268599006+6.16350403316169E-002i | D137: 0 | E137: 1 | F137: 0.52659268599006+0.0616350403316169i | G137: 3.14591508399076E-009 | H137: 3.145915084e-09 | I137: 4.42242681e-09
B138: 1.889009435e-10 | C138: 0.550673019227855+0.122648380233322i | D138: 0 | E138: 1 | F138: 0.550673019227855+0.122648380233322i | G138: 1.88900943498549E-010 | H138: 1.889009435e-10 | I138: 2.655509048e-10
B139: 0 | C139: 0.595197332433725+0.180156392385928i | D139: 0 | E139: 1 | F139: 0.595197332433725+0.180156392385928i | G139: 0 | H139: 0 | I139: 0
B140: 0 | C140: 0.664948429714756+0.226178473491637i | D140: 0 | E140: 1 | F140: 0.664948429714756+0.226178473491637i | G140: 0 | H140: 0 | I140: 0
B141: 0 | C141: 0.760665384473724+0.24527079516982i | D141: 0 | E141: 1 | F141: 0.760665384473724+0.24527079516982i | G141: 0 | H141: 0 | I141: 0
B142: 0 | C142: 0.870280796983934+0.217184361563608i | D142: 0 | E142: 1 | F142: 0.870280796983934+0.217184361563608i | G142: 0 | H142: 0 | I142: 0
B143: 0 | C143: 0.962964096778345+0.130261697514219i | D143: 0 | E143: 1 | F143: 0.962964096778345+0.130261697514219i | G143: 0 | H143: 0 | I143: 0
D144: 1

Sheet Sample Data
A2: 1034.087 | B2: 4.328 | C2: 1034.085 | D2: 10.08 | E2: 1034.081 | F2: 4.282 | G2: 1034.086 | H2: 3.841 | I2: 1034.088 | J2: 6.001 | K2: 1034.084 | L2: 1.495 | M2: 1034.078 | N2: 7.037 | O2: 1034.025 | P2: 7.008
A3: 1034.1 | B3: 4.351 | C3: 1034.098 | D3: 8.533 | E3: 1034.094 | F3: 4.003 | G3: 1034.099 | H3: 3.429 | I3: 1034.101 | J3: 5.973 | K3: 1034.097 | L3: 1.245 | M3: 1034.091 | N3: 7.247 | O3: 1034.038 | P3: 7.302
A4: 1034.114 | B4: 4.043 | C4: 1034.112 | D4: 7.185 | E4: 1034.108 | F4: 3.874 | G4: 1034.112 | H4: 3.356 | I4: 1034.114 | J4: 5.779 | K4: 1034.11 | L4: 1.088 | M4: 1034.104 | N4: 7.119 | O4: 1034.051 | P4: 7.809
A5: 1034.126 | B5: 3.377 | C5: 1034.125 | D5: 6.61 | E5: 1034.121 | F5: 4.044 | G5: 1034.125 | H5: 3.327 | I5: 1034.127 | J5: 5.281 | K5: 1034.123 | L5: 1.003 | M5: 1034.117 | N5: 6.617 | O5: 1034.064 | P5: 8.648
A6: 1034.14 | B6: 2.723 | C6: 1034.138 | D6: 6.662 | E6: 1034.134 | F6: 4.244 | G6: 1034.138 | H6: 3.322 | I6: 1034.14 | J6: 4.803 | K6: 1034.137 | L6: 1.086 | M6: 1034.13 | N6: 6.498 | O6: 1034.077 | P6: 9.431
A7: 1034.153 | B7: 2.229 | C7: 1034.151 | D7: 6.793 | E7: 1034.147 | F7: 4.306 | G7: 1034.152 | H7: 3.334 | I7: 1034.153 | J7: 4.35 | K7: 1034.15 | L7: 1.273 | M7: 1034.144 | N7: 6.076 | O7: 1034.09 | P7: 9.732
A8: 1034.166 | B8: 1.981 | C8: 1034.164 | D8: 6.772 | E8: 1034.16 | F8: 4.429 | G8: 1034.165 | H8: 3.396 | I8: 1034.166 | J8: 3.87 | K8: 1034.163 | L8: 1.318 | M8: 1034.156 | N8: 5.544 | O8: 1034.103 | P8: 9.54
A9: 1034.179 | B9: 1.941 | C9: 1034.177 | D9: 6.469 | E9: 1034.173 | F9: 4.457 | G9: 1034.178 | H9: 3.016 | I9: 1034.179 | J9: 3.531 | K9: 1034.176 | L9: 1.247 | M9: 1034.17 | N9: 5.232 | O9: 1034.117 | P9: 8.822
A10: 1034.192 | B10: 2.165 | C10: 1034.19 | D10: 6.038 | E10: 1034.186 | F10: 4.316 | G10: 1034.191 | H10: 2.749 | I10: 1034.193 | J10: 3.156 | K10: 1034.189 | L10: 1.052 | M10: 1034.183 | N10: 4.986 | O10: 1034.13 | P10: 7.637
A11: 1034.205 | B11: 2.403 | C11: 1034.203 | D11: 5.42 | E11: 1034.199 | F11: 3.842 | G11: 1034.204 | H11: 2.37 | I11: 1034.205 | J11: 2.818 | K11: 1034.202 | L11: 0.824 | M11: 1034.196 | N11: 4.79 | O11: 1034.143 | P11: 6.293
A12: 1034.218 | B12: 2.6 | C12: 1034.216 | D12: 4.505 | E12: 1034.212 | F12: 3.337 | G12: 1034.217 | H12: 2.221 | I12: 1034.219 | J12: 2.543 | K12: 1034.215 | L12: 0.5857 | M12: 1034.209 | N12: 4.343 | O12: 1034.156 | P12: 5.194

Sheet Statistics
A1: Title: Solver
A3: Weight | B3: SD for Y | C3: SD for X's | D3: Observations | E3: Parameters | F3: Adjustable Intercept Term | G3: Constants | H3: SD for Constants | I3: Variance-Covariance Matrix for Constants | J3: Full Variance-Covariance Matrix | K3: New Observations
A4: Unitary | B4: N | C4: N | D4: 30 | E4: 4 | F4: 1 | G4: 0 | H4: N | I4: N | J4: N | K4: 0
A6: ANOVA
A7: Source | B7: Sum Sq. | C7: Degr. Fred. | D7: Mean Sq. | E7: F calc. | F7: Crit. F(.05) | G7: Passed Prob. | H7: Check
A8: Model | B8: 1.172543564e+13 | C8: 3 | D8: 3.908478547e+12 | E8: 7871.160797 | F8: 2.975153964 | G8: 1.441386303e-38 | H8: Ok
A9: Residual | B9: 1.291047723e+10 | C9: 26 | D9: 496556816.5
A10: Total | B10: 1.173834612e+13 | C10: 29
A12: R | B12: Low. CI(.95) | C12: Up. CI(.95) | D12: R^2 | E12: R^2 adj
A13: 0.9994499213 | B13: 0.9987933553 | C13: 0.9997492779 | D13: 0.9989001451 | E13: 0.9987732388
A15: Linssen's Modification of Beale's Measure of NonLinearity
A16: Total Nonlinearity | B16: LB Crit.(.95) | C16: Check(.95)
A17: 2027690236 | B17: 0.5187118952 | C17: No
A19: Parameters Statistics
A20: Par. | B20: Value | C20: Std. Err. | D20: t calc. | E20: Crit. t(.05) | F20: Low. CI(.95) | G20: Up. CI(.95) | H20: Passed Prob. | I20: Check | J20: CV%
A21: p1 | B21: 0.163488271 | C21: 0.3205404372 | D21: 0.5100394585 | E21: 2.055529439 | F21: -0.4953920339 | G21: 0.822368576 | H21: 0.6143265576 | I21: No | J21: 196.063262
A22: C1 | B22: 7621.49994 | C22: 18476.86921 | D22: 0.4124887098 | E22: 2.055529439 | F22: -30358.24865 | G22: 45601.24853 | H22: 0.6833628118 | I22: No | J22: 242.4308778
A23: p2 | B23: 0.8759686008 | C23: 0.0006932763948 | D23: 1263.520015 | E23: 2.055529439 | F23: 0.8745435507 | G23: 0.8773936508 | H23: 8.784318972e-64 | I23: Ok | J23: 0.07914397779
A24: C2 | B24: 3169738.946 | C24: 17868.89223 | D24: 177.3886655 | E24: 2.055529439 | F24: 3133008.912 | G24: 3206468.98 | H24: 1.283402816e-41 | I24: Ok | J24: 0.5637338763
A26: F Joint Confidence Parameters Statistics
A27: Par. | B27: Value | C27: Low. CI(.95) | D27: Up. CI(.95) | E27: Passed Prob. | F27: Check
A28: p1 | B28: 0.163488271 | C28: -0.8981916217 | D28: 1.225168164 | E28: 0.9917493271 | F28: No
A29: C1 | B29: 7621.49994 | C29: -53576.77098 | D29: 68819.77086 | E29: 0.996348195 | F29: No
A30: p2 | B30: 0.8759686008 | C30: 0.8736723613 | D30: 0.8782648402 | E30: 7.935015416e-62 | F30: Ok
A31: C2 | B31: 3169738.946 | C31: 3110554.389 | D31: 3228923.502 | E31: 1.158011624e-39 | F31: Ok
A33: Variance-Covariance Table for Parameters
B34: p1 | C34: C1 | D34: p2 | E34: C2
A35: p1 | B35: 0.1027461719 | C35: 628.0625527 | D35: 4.038557124e-08 | E35: -0.3198044823
A36: C1 | B36: 628.0625527 | C36: 341394695.7 | D36: 0.000667843267 | E36: -5164.818387
A37: p2 | B37: 4.038557124e-08 | C37: 0.000667843267 | D37: 4.806321596e-07 | E37: -1.57783379
A38: C2 | B38: -0.3198044823 | C38: -5164.818387 | D38: -1.57783379 | E38: 319297309.5
A40: Hessian Variance-Covariance Table for Parameters
B41: p1 | C41: C1 | D41: p2 | E41: C2
A42: p1 | B42: 0.6977529208 | C42: 4260.923126 | D42: 2.858891461e-07 | E42: -2.377366481
A43: C1 | B43: 4260.919274 | C43: 363629202.9 | D43: 0.002254017466 | E43: -31558.79444
A44: p2 | B44: 2.849974564e-07 | C44: 0.00217792221 | D44: 4.994808623e-07 | E44: -1.639672012
A45: C2 | B45: -2.20356258 | C45: -16726.30218 | D45: -1.639671926 | E45: 319500195.8
A47: Correlation Table for Parameters
B48: p1 | C48: C1 | D48: p2 | E48: C2
A49: p1 | B49: 1 | C49: 0.1060453648 | D49: 0.0001817343374 | E49: -5.583468779e-05
A50: C1 | B50: 0.1060453648 | C50: 1 | D50: 5.213624563e-05 | E50: -1.564332401e-05
A51: p2 | B51: 0.0001817343374 | C51: 5.213624563e-05 | D51: 1 | E51: -0.1273670851
A52: C2 | B52: -5.583468779e-05 | C52: -1.564332401e-05 | D52: -0.1273670851 | E52: 1
A54: Ratio Objects/Parameters | B54: Check
A55: 7.5 | B55: Critical
A57: Observation Statistics (CI based on t Statistic) | U57: DFBETAS | V57: DFBETAS | W57: DFBETAS | X57: DFBETAS
A58: Y | B58: Ycalc | C58: Low. Regr. Conf. Band (.95) | D58: Up. Regr. Conf. Band (.95) | E58: Weighted Residual | F58: Residual | G58: Std. Err. | H58: Mean Low. CI (.95) | I58: Mean Up. CI (.95) | J58: Pred. Std. Err. | K58: Pred. Low. CI (.95) | L58: Pred. Up. CI (.95) | M58: Leverage | N58: Std Residual | O58: PRESS Deleted Residual | P58: Stud. Residual | Q58: Stud. Del. Residual | R58: Cook's Distance | S58: DFFITS | T58: COVRATIO | U58: p1 | V58: C1 | W58: p2 | X58: C2 | Y58: X | Z58: Z Expected Under Normality for Residuals
A59: 10529 | B59: 6155.298671 | C59: 4169.592676 | D59: 8141.004665 | E59: 4373.701329 | F59: 4373.701329 | G59: 599.5206955 | H59: 4922.966232 | I59: 7387.631109 | J59: 22291.61819 | K59: -39665.77875 | L59: 51976.3761 | M59: 0.0007238347201 | N59: 0.1962748475 | O59: 4376.869459 | P59: 0.1963459214 | Q59: 0.1926759152 | R59: 6.98132184e-06 | S59: 0.005185663976 | T59: 1.163777889 | U59: -0.005006814153 | V59: 0.0008115940525 | W59: -8.652866692e-07 | X59: 2.663528211e-07 | Y59: 973.3049927 | Z59: 0.2086637458
A60: 9492.979492 | B60: 6499.313361 | C60: -3777.923396 | D60: 16776.55012 | E60: 2993.666132 | F60: 2993.666132 | G60: 3102.884387 | H60: 121.243158 | I60: 12877.38356 | J60: 22498.54902 | K60: -39747.11648 | L60: 52745.7432 | M60: 0.01938930491 | N60: 0.1343441903 | O60: 3052.858944 | P60: 0.1356658616 | Q60: 0.1330784332 | R60: 9.098017709e-05 | S60: 0.0187128737 | T60: 1.18961535 | U60: -0.01774418781 | V60: 0.004027481726 | W60: -3.028319541e-06 | X60: 9.326369553e-07 | Y60: 973.6400146 | Z60: -0.04144373309
A61: 8967.249023 | B61: 7357.620361 | C61: -17853.92126 | D61: 32569.16198 | E61: 1609.628663 | F61: 1609.628663 | G61: 7611.822198 | H61: -8288.704249 | I61: 23003.94497 | J61: 23547.75262 | K61: -41045.47837 | L61: 55760.71909 | M61: 0.1166831977 | N61: 0.07223392649 | O61: 1822.25523 | P61: 0.07685692013 | Q61: 0.07537297322 | R61: 0.0001950732833 | S61: 0.02739438547 | T61: 1.323189812 | U61: -0.02509206072 | V61: 0.008269881553 | W61: -4.196772447e-06 | X61: 1.293526223e-06 | Y61: 973.9810181 | Z61: -0.1246174079
A62: 9838.530273 | B62: 8663.211481 | C62: -30083.60509 | D62: 47410.02805 | E62: 1175.318793 | F62: 1175.318793 | G62: 11698.36747 | H62: -15383.12725 | I62: 32709.55021 | J62: 25167.6105 | K62: -43069.55279 | L62: 60395.97575 | M62: 0.2756014962 | N62: 0.05274377455 | O62: 1622.475456 | P62: 0.06197013383 | Q62: 0.06077120394 | R62: 0.0003652657093 | S62: 0.0374843387 | T62: 1.613983929 | U62: -0.03178336512 | V62: 0.01638939313 | W62: -5.119351317e-06 | X62: 1.580317601e-06 | Y62: 974.2940063 | Z62: -0.2942131389
A63: 10039.84375 | B63: 9941.817886 | C63: -32201.42692 | D63: 52085.0627 | E63: 98.02586375 | F63: 98.02586375 | G63: 12723.81083 | H63: -16212.34985 | I63: 36095.98562 | J63: 25660.32304 | K63: -42803.73153 | L63: 62687.3673 | M63: 0.3260359271 | N63: 0.004399022707 | O63: 145.4467199 | P63: 0.005358433319 | Q63: 0.005254379066 | R63: 3.472517021e-06 | S63: 0.003654565562 | T63: 1.73578005 | U63: -0.002499038869 | V63: 0.002386533432 | W63: -3.660292752e-07 | X63: 1.134607026e-07 | Y63: 974.6209717 | Z63: -0.8929184864
A64: 9538.979492 | B64: 10627.2554 | C64: -27155.00697 | D64: 48409.51778 | E64: -1088.275911 | F64: -1088.275911 | G64: 11407.15105 | H64: -12820.47939 | I64: 34074.99019 | J64: 25033.57568 | K64: -40829.99637 | L64: 62084.50718 | M64: 0.2620507678 | N64: -0.04883762573 | O64: -1474.730055 | P64: -0.05685141777 | Q64: -0.05575086698 | R64: 0.0002869337006 | S64: -0.03322240752 | T64: 1.584495129 | U64: 0.009445852681 | V64: -0.03066999405 | W64: 6.639342775e-07 | X64: -2.159820358e-07 | Y64: 974.9729614 | Z64: -1.024106184
A65: 7862.591797 | B65: 10473.64293 | C65: -26291.42846 | D65: 47238.71431 | E65: -2611.051131 | F65: -2611.051131 | G65: 11100.04262 | H65: -12342.82144 | I65: 33290.1073 | J65: 24895.13532 | K65: -40699.0406 | L65: 61646.32646 | M65: 0.2481306107 | N65: -0.1171739047 | O65: -3472.745623 | P65: -0.1351324655 | Q65: -0.1325548416 | R65: 0.001506597874 | S65: -0.07614906329 | T65: 1.55156666 | U65: -0.02333422101 | V65: -0.07455157877 | W65: -6.636319375e-06 | X65: 2.011584351e-06 | Y65: 975.3079834 | Z65: -1.175813473
A66: 10697.1543 | B66: 9665.115548 | C66: -29077.43627 | D66: 48407.66736 | E66: 1032.038749 | F66: 1032.038749 | G66: 11697.07987 | H66: -14378.57647 | I66: 33708.80756 | J66: 25167.01202 | K66: -42066.41854 | L66: 61396.64963 | M66: 0.2755408301 | N66: 0.04631391878 | O66: 1424.564409 | P66: 0.05441323829 | Q66: 0.05335960827 | R66: 0.0002815277457 | S66: 0.03290778543 | T66: 1.614067183 | U66: 0.02225364448 | V66: 0.02646567575 | W66: 4.845448808e-06 | X66: -1.47954934e-06 | Y66: 975.6430054 | Z66: -0.472789121
A67: 9686 | B67: 8604.109586 | C67: -27434.47773 | D67: 44642.6969 | E67: 1081.890414 | F67: 1081.890414 | G67: 10880.70389 | H67: -13761.49756 | I67: 30969.71674 | J67: 24798.11552 | K67: -42369.1469 | L67: 59577.36607 | M67: 0.2384212906 | N67: 0.04855106922 | O67: 1420.5891 | P67: 0.05563414286 | Q67: 0.05455701285 | R67: 0.0002422440125 | S67: 0.03052570504 | T67: 1.535365398 | U67: 0.02535435814 | V67: 0.01959212858 | W67: 5.169179749e-06 | X67: -1.581782527e-06 | Y67: 975.9699707 | Z67: -0.3819757677
A68: 8031.963867 | B68: 7639.670006 | C68: -20490.31725 | D68: 35769.65726 | E68: 392.2938613 | F68: 392.2938613 | G68: 8492.953927 | H68: -9817.846811 | I68: 25097.18682 | J68: 23847.1609 | K68: -41378.87125 | L68: 56658.21126 | M68: 0.1452608523 | N68: 0.01760463553 | O68: 458.9632549 | P68: 0.01904189827 | Q68: 0.01867224767 | R68: 1.54054888e-05 | S68: 0.007697577952 | T68: 1.368596847 | U68: 0.006913551864 | V68: 0.004098663862 | W68: 1.366710236e-06 | X68: -4.18795068e-07 | Y68: 976.2979736 | Z68: -0.7755469583
A69: 7931.549316 | B69: 6938.472329 | C69: -11738.18987 | D69: 25615.13453 | E69: 993.0769874 | F69: 993.0769874 | G69: 5638.823442 | H69: -4652.295255 | I69: 18529.23991 | J69: 22985.93366 | K69: -40309.79099 | L69: 54186.73564 | M69: 0.06403361862 | N69: 0.04456546518 | O69: 1061.017796 | P69: 0.04606470764 | Q69: 0.04517200551 | R69: 3.62931315e-05 | S69: 0.01181525965 | T69: 1.249485798 | U69: 0.01101213126 | V69: 0.005425385278 | W69: 2.106275725e-06 | X69: -6.49259809e-07 | Y69: 976.6389771 | Z69: -0.6680021323
A70: 7519.054199 | B70: 6508.972408 | C70: -4253.62389 | D70: 17271.56871 | E70: 1010.081791 | F70: 1010.081791 | G70: 3249.423246 | H70: -170.3127324 | I70: 13188.25755 | J70: 22519.22663 | K70: -39779.96086 | L70: 52797.90568 | M70: 0.02126393412 | N70: 0.04532857519 | O70: 1032.02674 | P70: 0.04581833171 | Q70: 0.04493038461 | R70: 1.140240805e-05 | S70: 0.006622609521 | T70: 1.194888811 | U70: 0.006299032861 | V70: 0.002701237345 | W70: 9.125804207e-07 | X70: -3.082592679e-07 | Y70: 976.9520264 | Z70: -0.5676863911
A71: 9512.375 | B71: 6293.044395 | C71: 817.9526985 | D71: 11768.13609 | E71: 3219.330605 | F71: 3219.330605 | G71: 1653.029598 | H71: 2895.193393 | I71: 9690.895396 | J71: 22344.78291 | K71: -39637.31468 | L71: 52223.40347 | M71: 0.005502908752 | N71: 0.1444711415 | O71: 3237.144315 | P71: 0.1448702954 | Q71: 0.1421143817 | R71: 2.903270454e-05 | S71: 0.01057139808 | T71: 1.172538226 | U71: 0.01018001157 | V71: 0.003913346439 | W71: -4.781493305e-06 | X71: 8.859437876e-07 | Y71: 977.2709351 | Z71: 0.1246174079
A72: 10839.07031 | B72: 6284.491468 | C72: 3793.278612 | D72: 8775.704324 | E72: 4554.578844 | F72: 4554.578844 | G72: 752.1423957 | H72: 4738.440632 | I72: 7830.542305 | J72: 22296.24486 | K72: -39546.0962 | L72: 52115.07914 | M72: 0.00113928188 | N72: 0.2043919328 | O72: 4559.773712 | P72: 0.2045084624 | Q72: 0.2006985335 | R72: 1.192583597e-05 | S72: 0.006778089936 | T72: 1.163675099 | U72: 0.006580568415 | V72: 0.002312041625 | W72: -5.619761539e-05 | X72: 1.289185487e-05 | Y72: 977.605957 | Z72: 0.2942131389
A73: 10005.10352 | B73: 6808.411318 | C73: 5779.455373 | D73: 7837.367263 | E73: 3196.692197 | F73: 3196.692197 | G73: 310.6604832 | H73: 6169.83955 | I73: 7446.983087 | J73: 22285.72024 | K73: -39000.54269 | L73: 52617.36532 | M73: 0.0001943582942 | N73: 0.1434552171 | O73: 3197.313622 | P73: 0.14346916 | Q73: 0.1407388061 | R73: 1.000333044e-06 | S73: 0.001962264787 | T73: 1.166385089 | U73: 0.001905480405 | V73: 0.0006197018526 | W73: -0.0002061122323 | X73: 5.036795735e-05 | Y73: 977.940979 | Z73: 0.04144373309
A74: 17506.54102 | B74: 9518.893426 | C74: 8912.259736 | D74: 10125.52712 | E74: 7987.64759 | F74: 7987.64759 | G74: 183.153726 | H74: 9142.41555 | I74: 9895.371302 | J74: 22284.30752 | K74: -36287.15671 | L74: 55324.94356 | M74: 6.755578865e-05 | N74: 0.3584548177 | O74: 7988.187238 | P74: 0.3584669262 | Q74: 0.3523775886 | R74: 2.170351624e-06 | S74: 0.002896371287 | T74: 1.146979989 | U74: 0.00178562262 | V74: 0.0005419111657 | W74: -0.002232019771 | X74: 0.0005840825265 | Y74: 978.276001 | Z74: 0.3819757677
A75: 31151.19336 | B75: 20536.26603 | C75: 18822.49102 | D75: 22250.04103 | E75: 10614.92733 | F75: 10614.92733 | G75: 517.4197924 | H75: 19472.69441 | I75: 21599.83764 | J75: 22289.56123 | K75: -25280.58325 | L75: 66353.1153 | M75: 0.0005391593321 | N75: 0.476357 | O75: 10620.65356 | P75: 0.4764854681 | Q75: 0.4692858949 | R75: 3.061897671e-05 | S75: 0.01089966557 | T75: 1.130138029 | U75: 0.0008064848493 | V75: 0.0002295674301 | W75: -0.01073471464 | X75: 0.003054530178 | Y75: 978.6170044 | Z75: 0.5676863911
A76: 77792.17969 | B76: 57873.10837 | C76: 52746.51367 | D76: 62999.70306 | E76: 19919.07132 | F76: 19919.07132 | G76: 1547.812025 | H76: 54691.53518 | I76: 61054.68155 | J76: 22337.24555 | K76: 11958.24257 | L76: 103787.9742 | M76: 0.004824668569 | N76: 0.8938910986 | O76: 20015.64015 | P76: 0.8960552971 | Q76: 0.8925440643 | R76: 0.0009731449076 | S76: 0.06214606107 | T76: 1.036911189 | U76: 0.0004627364951 | V76: 0.0001237852687 | W76: -0.06104720017 | X76: 0.01930575961 | Y76: 978.9450073 | Z76: 0.7755469583
A77: 206543.9844 | B77: 162601.4314 | C77: 150052.6502 | D77: 175150.2126 | E77: 43942.55295 | F77: 43942.55295 | G77: 3788.704906 | H77: 154813.637 | I77: 170389.2259 | J77: 22603.3427 | K77: 116139.5951 | L77: 209063.2678 | M77: 0.02890763833 | N77: 1.971972302 | O77: 45250.64214 | P77: 2.001108062 | Q77: 2.133403336 | R77: 0.02980115981 | S77: 0.3680857521 | T77: 0.6170495449 | U77: 0.0002501955457 | V77: 6.104739683e-05 | W77: -0.3581319521 | X77: 0.1299425014 | Y77: 979.2860107 | Z77: 1.360873343
A78: 450992.5625 | B78: 401365.2239 | C78: 376819.634 | D78: 425910.8138 | E78: 49627.33855 | F78: 49627.33855 | G78: 7410.759281 | H78: 386132.1901 | I78: 416598.2578 | J78: 23483.52975 | K78: 353094.1372 | L78: 449636.3107 | M78: 0.1106003408 | N78: 2.227083556 | O78: 55798.69302 | P78: 2.361500445 | Q78: 2.612732283 | R78: 0.1733706505 | S78: 0.9213500519 | T78: 0.5007811863 | U78: -6.793913483e-05 | V78: -2.414410987e-05 | W78: -0.8794216409 | X78: 0.3845504494 | Y78: 979.6140137 | Z78: 2.040281322
A79: 875645.125 | B79: 830964.5967 | C79: 793674.2605 | D79: 868254.9329 | E79: 44680.52832 | F79: 44680.52832 | G79: 11258.62961 | H79: 807822.1521 | I79: 854107.0413 | J79: 24966.24836 | K79: 779645.7382 | L79: 882283.4551 | M79: 0.2552713737 | N79: 2.005089791 | O79: 59995.71756 | P79: 2.323457869 | Q79: 2.559498775 | R79: 0.4626085763 | S79: 1.498500733 | T79: 0.6192142733 | U79: -0.0002448659503 | V79: -7.142146103e-05 | W79: -1.366989007 | X79: 0.7829872034 | Y79: 979.9559937 | Z79: 1.609816067
A80: 1376038.5 | B80: 1409472.67 | C80: 1366687.757 | D80: 1452257.583 | E80: -33434.17012 | F80: -33434.17012 | G80: 12917.542 | H80: 1382920.282 | I80: 1436025.058 | J80: 25756.93514 | K80: 1356528.532 | L80: 1462416.809 | M80: 0.3360398765 | N80: -1.500396609 | O80: -50355.68996 | P80: -1.841344612 | Q80: -1.936243981 | R80: 0.4290016661 | S80: -1.377477426 | T80: 1.007529941 | U80: 0.0002227342774 | V80: 6.383402938e-05 | W80: 1.094198125 | X80: -0.9693142391 | Y80: 980.2969971 | Z80: -1.609816067
A81: 1903733.25 | B81: 1923704.849 | C81: 1884508.437 | D81: 1962901.261 | E81: -19971.59893 | F81: -19971.59893 | G81: 11834.10854 | H81: 1899379.49 | I81: 1948030.207 | J81: 25230.99168 | K81: 1871841.803 | L81: 1975567.895 | M81: 0.2820344424 | N81: -0.8962483349 | O81: -27816.93177 | P81: -1.057734224 | Q81: -1.060256429 | R81: 0.1098731711 | S81: -0.6645232543 | T81: 1.366537411 | U81: 7.060945362e-05 | V81: 2.002794711e-05 | W81: 0.2812181602 | X81: -0.633000296 | Y81: 980.625 | Z81: -1.360873343
A82: 2046722.25 | B82: 2081109.696 | C82: 2041383.565 | D82: 2120835.827 | E82: -34387.44559 | F82: -34387.44559 | G82: 11994.04031 | H82: 2056455.593 | I82: 2105763.799 | J82: 25306.39878 | K82: 2029091.648 | L82: 2133127.743 | M82: 0.2897090485 | N82: -1.543175936 | O82: -48413.18269 | P82: -1.831037763 | Q82: -1.923796287 | R82: 0.3418695251 | S82: -1.22863242 | T82: 0.9481334527 | U82: -1.752361548e-05 | V82: -5.45918863e-06 | W82: -0.3114360349 | X82: -1.139159149 | Y82: 980.9586182 | Z82: -2.040281322
A83: 1781418 | B83: 1771037.592 | C83: 1728253.461 | D83: 1813821.723 | E83: 10380.40816 | F83: 10380.40816 | G83: 12917.30608 | H83: 1744485.689 | I83: 1797589.495 | J83: 25756.81683 | K83: 1718093.697 | L83: 1823981.487 | M83: 0.3360276024 | N83: 0.4658326838 | O83: 15633.79471 | P83: 0.57168256 | Q83: 0.5641376994 | R83: 0.04134993428 | S83: 0.4013262684 | T83: 1.674975807 | U83: 3.695584153e-05 | V83: 1.071775724e-05 | W83: 0.2589514438 | X83: 0.2711264913 | Y83: 981.2940674 | Z83: 0.472789121
A84: 1234245.75 | B84: 1196199.774 | C84: 1160587.888 | D84: 1231811.661 | E84: 38045.97565 | F84: 38045.97565 | G84: 10751.87526 | H84: 1174098.978 | I84: 1218300.57 | J84: 24741.86004 | K84: 1145342.153 | L84: 1247057.396 | M84: 0.2328088503 | N84: 1.707356654 | O84: 49591.25983 | P84: 1.949272067 | Q84: 2.068534013 | R84: 0.288257642 | S84: 1.139490261 | T84: 0.8105405739 | U84: 0.0001394156098 | V84: 4.026214733e-05 | W84: 0.8950291269 | X84: 0.5854972385 | Y84: 981.6295166 | Z84: 1.175813473
A85: 690800.5 | B85: 660137.4596 | C85: 637530.5496 | D85: 682744.3695 | E85: 30663.04042 | F85: 30663.04042 | G85: 6825.436598 | H85: 646107.5737 | I85: 674167.3454 | J85: 23305.43716 | K85: 612232.4474 | L85: 708042.4717 | M85: 0.09381924326 | N85: 1.376038995 | O85: 33837.6645 | P85: 1.4455174 | Q85: 1.478084238 | R85: 0.05408337014 | S85: 0.4755954936 | T85: 0.9233753318 | U85: 6.458057796e-05 | V85: 1.86232289e-05 | W85: 0.4015672549 | X85: 0.2016012821 | Y85: 981.9649658 | Z85: 1.024106184
A86: 330288.2188 | B86: 307722.2032 | C86: 296203.7625 | D86: 319240.6439 | E86: 22566.01554 | F86: 22566.01554 | G86: 3477.626391 | H86: 300573.8398 | I86: 314870.5666 | J86: 22553.28583 | K86: 261363.2602 | L86: 354081.1462 | M86: 0.02435549148 | N86: 1.012675747 | O86: 23129.34203 | P86: 1.025237792 | Q86: 1.026287452 | R86: 0.006559859162 | S86: 0.1621517595 | T86: 1.016607004 | U86: 2.317947816e-05 | V86: 6.679468723e-06 | W86: 0.1418065327 | X86: 0.05993710245 | Y86: 982.300415 | Z86: 0.8929184864
A87: 138177.2344 | B87: 125703.8972 | C87: 120794.1492 | D87: 130613.6451 | E87: 12473.3372 | F87: 12473.3372 | G87: 1482.342056 | H87: 122656.8994 | I87: 128750.8949 | J87: 22332.80445 | K87: 79798.16019 | L87: 171609.6342 | M87: 0.004425149145 | N87: 0.5597552672 | O87: 12528.77891 | P87: 0.5609978931 | Q87: 0.5534636091 | R87: 0.0003497167747 | S87: 0.03689912506 | T87: 1.119188806 | U87: 5.435833523e-06 | V87: 1.565728911e-06 | W87: 0.0329299185 | X87: 0.01231852279 | Y87: 982.6358643 | Z87: 0.6680021323
A88: 48974.14453 | B88: 47641.91212 | C88: 45838.03044 | D88: 49445.7938 | E88: 1332.232411 | F88: 1332.232411 | G88: 544.624634 | H88: 46522.42015 | I88: 48761.40409 | J88: 22290.20934 | K88: 1823.730626 | L88: 93460.09361 | M88: 0.0005973455245 | N88: 0.05978545257 | O88: 1333.02869 | P88: 0.05980331686 | Q88: 0.05864601053 | R88: 5.344113434e-07 | S88: 0.001433775093 | T88: 1.169913855 | U88: 2.155107176e-07 | V88: 6.205708278e-08 | W88: 0.001296770917 | X88: 0.000441486752 | Y88: 982.9713135 | Z88: -0.2086637458
A89: Cut Point | M89: >.2667 | Q89: >|2.1051| | R89: >.1429 | S89: >|.7428| | T89: <.7333 | U89: >|1|
A91: Non-Weighted Residuals Statistics
A92: Mean | B92: Standard Deviation
A93: 7549.028599 | B93: 19652.88629
A95: Collinearity Tests for the Jacobian Matrix
A96: Jacobian Correlation Matrix
B97: C1 | C97: p2 | D97: C2
A98: C1 | B98: 1 | C98: 0.001116280948 | D98: -0.3507385384
A99: p2 | B99: 0.001116280948 | C99: 1 | D99: 0.1481715817
A100: C2 | B100: -0.3507385384 | C100: 0.1481715817 | D100: 1
A102: Condition Number for the Correlation Matrix
A103: Value | B103: Check
A104: 1.493494545 | B104: Ok
A106: Variable | B106: Tolerance | C106: VIF | D106: Check
A107: p1 | B107: 0.8741011196 | C107: 1.144032398 | D107: Ok
A108: C1 | B108: 0.974831779 | C108: 1.025818014 | D108: Ok
A109: p2 | B109: 0.8549114542 | C109: 1.169711781 | D109: Ok
A111: Durbin Watson Statistic for Autocorrelation of Residuals
A112: Note: DW tests do not apply directly to residuals from regression through the origin. See J. Durbin and G.S. Watson. Biometrika, 38 (1951)159-178.
A114: Durbin Watson Bounds Test
A115: DW | B115: DWcritInf(.05) | C115: DWcritSup(.05) | D115: 4-DWcritSup(.05) | E115: 4-DWcritInf(.05) | F115: Result(.05)
A116: 0.8046500745 | B116: 1.21 | C116: 1.66 | D116: 2.34 | E116: 2.79 | F116: Positive Correlation
A118: Approximate Durbin-Watson Statistic (t Distribution)
A119: Probability for No Positive Serial Correlation | B119: Probability for No Negative Serial Correlation
A120: 0.002621045599 | B120: 0.9973789544
A122: Beta Approximation for Durbin Watson Statistic
A123: DW | B123: DWcritical Pos.Corr(.05) | C123: Check(.05) | D123: Passed Prob. | E123: DWcritical Neg.Corr(.05) | F123: Check(.05) | G123: Passed Prob.
A124: 0.8046500745 | B124: 1.65999442 | C124: No | D124: 2.698338062e-06 | E124: 2.34000558 | F124: Ok | G124: 0.9993453529
A126: a + bDu Approximation for Durbin Watson Statistic
A127: DW | B127: DWcritical Pos.Corr(.05) | C127: Check(.05) | D127: Passed Prob. | E127: DWcritical Neg.Corr(.05) | F127: Check(.05) | G127: Passed Prob.
A128: 0.8046500745 | B128: 1.668044012 | C128: No | D128: 1.13225612e-05 | E128: 2.329290446 | F128: Ok | G128: 0.9983624878
A130: Box Pierce Ljung Q' Test for Autocorrelation Of High Order
A131: Autoregressive Order | B131: Q' | C131: ChiSqcrit(.05) | D131: Check(.05) | E131: Passed Prob.
A132: 1 | B132: 11.79304671 | C132: 5.991464547 | D132: No | E132: 0.0005945235738
A133: 2 | B133: 12.92404016 | C133: 5.991464547 | D133: No | E133: 0.001561637891
A134: 3 | B134: 15.52712171 | C134: 5.991464547 | D134: No | E134: 0.00141735285
A135: 4 | B135: 19.29041531 | C135: 5.991464547 | D135: No | E135: 0.0006891181317
A136: 5 | B136: 19.5924801 | C136: 5.991464547 | D136: No | E136: 0.001489968717
A137: 6 | B137: 20.58885698 | C137: 5.991464547 | D137: No | E137: 0.002174083807
A139: Residuals Runs Test
A140: Res. + | B140: Res. - | C140: Runs | D140: Low Crit. Runs (.05) | E140: Up. Crit. Runs (.05) | F140: Check(.05) | G140: Passed Prob.
A141: 25 | B141: 5 | C141: 5 | D141: 5 | E141: 11 | F141: No | G141: 0.01031535514
A143: Shapiro Wilk Statistic for Normality of Residual
A144: W | B144: Wcrit(.05) | C144: Check(.05) | D144: Passed Prob.
A145: 0.8882487915 | B145: 0.927 | C145: No | D145: 0.009869431017
A147: Shapiro Wilk Statistic for Normality of Residual AS R84
A148: Z | B148: Zcrit(.05) | C148: Check(.05) | D148: Passed Prob. | E148: W Shapiro Statistic
A149: 2.60138405 | B149: 1.644853627 | C149: No | D149: 0.004642422312 | E149: 0.8892958441
A151: Anderson Darling Statistic for Normality of Residual
A152: A2 | B152: A2crit(.05) | C152: Check(.05) | D152: Passed Prob.
A153: 1.658728318 | B153: 0.7517604086 | C153: No | D153: 0.0002288675412
A155: Lilliefors Statistic for Normality of Residual
A156: Lf | B156: Lfcrit(.05) | C156: Check(.05) | D156: Passed Prob.
A157: 0.1938845602 | B157: 0.1591843038 | C157: No | D157: 0.005495762692
A159: Jarque-Bera Statistic for Normality of Residual
A160: JB | B160: ChiSqcrit(.05) | C160: Check(.05) | D160: Passed Prob.
A161: 0.4962548584 | B161: 5.991464547 | C161: Ok | D161: 0.780260509
A163: D'Agostino Omnibus Statistics
A164: Test | B164: Value | C164: Critical Value(.05) | D164: Check(.05) | E164: Passed Prob. | F164: Kurt./Skew.
A165: D'A.Kurtosis | B165: 1.078665512 | C165: 1.959963985 | D165: Ok | E165: 0.2807368652 | F165: 3.476403573
A166: D'A.Skewness | B166: 0.6247050786 | C166: 1.959963985 | D166: Ok | E166: 0.5321646393 | F166: 0.2403752501
A167: D'A.Omnibus | B167: 1.553775723 | C167: 5.991464547 | D167: Ok | E167: 0.4598348566
A169: Modified Levene Test for Constant Variance
A170: F | B170: Crit. F(.05) | C170: Check | D170: Passed Prob.
A171: 20.01821919 | B171: 4.195971819 | C171: No | D171: 0.0001165710074
A173: Multiple Levene Test for Constant Variance
A174: F | B174: Crit. F(.05) | C174: Check | D174: Passed Prob.
A175: 6.466955649 | B175: 3.354130829 | C175: No | D175: 0.005073362044
A177: Breush-Pagan Test for Homoscedasticity of Residuals
A178: Breush-Pagan MSS/2 | B178: ChiSqcrit(.05) | C178: Check(.05) | D178: Passed Prob.
A179: 11.57534413 | B179: 3.841458821 | C179: No | D179: 0.0006683206644
A180: Koenkar-Evans NR2 | B180: ChiSqcrit(.05) | C180: Check(.05) | D180: Passed Prob.
A181: 6.685954693 | B181: 3.841458821 | C181: No | D181: 0.009717546647
A183: Error Sum of Squares (RSS or SSE) | B183: dF | C183: Error Mean Squared (MSSE) | D183: Error Mean Squared (RMSSE)
A184: 1.291047723e+10 | B184: 26 | C184: 496556816.5 | D184: 22283.55484
A186: R | B186: R^2 | C186: R^2 adj
A187: 0.9994499213 | B187: 0.9989001451 | C187: 0.9987732388
A189: PRESS | B189: 1.963018779e+10 | C189: AIC | D189: 604.4032288
A190: MEP | B190: 654339592.8 | C190: AICc | D190: 606.0032288
A191: R^2 prediction | B191: 0.9983276871 | C191: HQC | D191: 606.1962491
A192: SDEC | B192: 20744.86059 | C192: HQCc | D192: 608.1548531
A193: SDEP | B193: 25580.06241 | C193: SBC (BIC) | D193: 610.0080183
C194: SBCc (BICc) | D194: 612.7289762
A196: Models Comparison using Information Criterion (Replace IC)
C197: IC | D197: IC
A198: Min IC | B198: =MIN(C198:D198) -> 606.0032288 | C198: 606.0032288 | D198: 606.0032288
A199: Weight Sum | B199: =SUM(C199:D199) -> 2 | C199: =EXP(-0.5*(C198-$B198)) -> 1 | D199: =EXP(-0.5*(D198-$B198)) -> 1
B200: Probability | C200: =(C199/$B199) -> 0.5 | D200: =(D199/$B199) -> 0.5
B201: Evidence Ratio | C201: =1/C199 -> 1 | D201: =1/D199 -> 1
A203: Log-Likelihood Section
A204: Log-Likelihood Function | B204: -342.916283
A206: Log-Likelihood Tests for Nested Models (Replace RSS and NPar values)
B207: RSS | C207: NPar | F207: Test Value | G207: dF | H207: Crit. Chi^2 (.05) | I207: Passed Probability
A208: Restricted Model | B208: 1.291047723e+10 | C208: 4 | E208: Lagrange Multiplier Test | F208: =30*(1-1/B210) -> 0 | G208: =C209-C208 -> 0 | H208: =CHIINV(0.05,G208) ->  | I208: =CHIDIST(F208,G208) -> 
A209: Unrestricted Model | B209: 1.291047723e+10 | C209: 4 | E209: Likelihood Ratio Test | F209: =30*LN(B210) -> 0 | G209: =G208 -> 0 | H209: =H208 ->  | I209: =CHIDIST(F209,G209) -> 
A210: Ratio | B210: =B208/B209 -> 1 | E210: Wald Statistic | F210: =30*(B210-1) -> 0 | G210: =G209 -> 0 | H210: =H209 ->  | I210: =CHIDIST(F210,G210) -> 
A212: F Test for Models Comparison (Replace Residual Mean Square and dF)
A213: Residual Sum of Squares #1 | B213: dF #1 | C213: Residual Sum of Squares #2 | D213: dF #2 | E213: F calc. (>1) | F213: Crit. F (.05) | G213: Passed Prob.
A214: 1.291047723e+10 | B214: 26 | C214: 1.291047723e+10 | D214: 26 | E214: =(A214/B214)/(C214/D214) -> 1 | F214: =FINV(0.05/2,B214,D214) -> 2.194306015 | G214: =2*FDIST(E214,B214,D214) -> 1
A216: Extra Sum F Test for Significance of Extra Parameters in Nested Models (Replace Residual Mean Square and dF)
A217: Reduced Model Residual Sum Of Squares | B217: Reduced Model dF | C217: Full Model Residual Sum Of Squares | D217: Full Model dF | E217: F calc. (>1) | F217: Crit. F (.05) | G217: Passed Prob.
A218: 1.291047723e+10 | B218: 26 | C218: 1.291047723e+10 | D218: 26 | E218: =((A218-C218)/(B218-D218))/(C218/D218) ->  | F218: =FINV(0.05,B218-D218,D218) ->  | G218: =FDIST(E218,B218-D218,D218) -> 

Sheet Solver
H1: MC Search N | I1: 0
H2: Start Value
H3: End Value
G4: Title | H4: ResidualSS | I4: p1 | J4: C1 | K4: p2 | L4: C2
H5: =SUM(H7:H36) -> 1.291047723e+10 | I5: 0.163488271 | J5: 7621.49994 | K5: 0.8759686008 | L5: 3169738.946
D6: W | E6: X | F6: Y | G6: Ycalc | H6: r^2 | I6: i
D7: =IF(ISNUMBER(G7),1/1^2,"") -> 1 | E7: 973.3049927 | F7: 10529 | G7: =IF(ISNUMBER(J7),SUM(L7,N7)-$U$7,"") -> 6155.298671 | H7: =IF(ISNUMBER(G7),D7*(G7-F7)^2,0) -> 19129263.32 | I7: 0.6164282512 | J7: 0 | K7: =IF(ISNUMBER((((EXP(GAMMALN($Q$8+1)))/((EXP(GAMMALN(J7+1)))*(EXP(GAMMALN($Q$8-J7+1))))))*(($I$5)^J7)*((1-$I$5)^($Q$8-J7))),(((EXP(GAMMALN($Q$8+1)))/((EXP(GAMMALN(J7+1)))*(EXP(GAMMALN($Q$8-J7+1))))))*(($I$5)^J7)*((1-$I$5)^($Q$8-J7)),0) -> 0.0137825264 | L7: =J$5*(K$7*I7) + $U$7 -> 6155.298671 | M7: =IF(ISNUMBER((((EXP(GAMMALN($R$8+1)))/((EXP(GAMMALN(J7+1)))*(EXP(GAMMALN($R$8-J7+1))))))*(($K$5)^J7)*((1-$K$5)^($R$8-J7))),(((EXP(GAMMALN($R$8+1)))/((EXP(GAMMALN(J7+1)))*(EXP(GAMMALN($R$8-J7+1))))))*(($K$5)^J7)*((1-$K$5)^($R$8-J7)),0) -> 1.756950135e-22 | N7: =L$5*(M$7*I7) + $U$7 -> 6090.546875 | O7: =IF(ISNUMBER((((EXP(GAMMALN($O$5+1)))/((EXP(GAMMALN(J7+1)))*(EXP(GAMMALN($O$5-J7+1))))))*(($P$5)^J7)*((1-$P$5)^($O$5-J7))),(((EXP(GAMMALN($O$5+1)))/((EXP(GAMMALN(J7+1)))*(EXP(GAMMALN($O$5-J7+1))))))*(($P$5)^J7)*((1-$P$5)^($O$5-J7)),0) -> 0 | P7: =Q$5*(O$7*I7) + $U$7 -> 6090.546875 | Q7: 24 | R7: Double | S7: FALSE | T7: 0.9499999881 | U7: 6090.546875
D8: 1 | E8: 973.6400146 | F8: 9492.979492 | G8: 6499.313361 | H8: 8962036.907 | I8: 1 | J8: 1 | K8: 0.06464793259 | L8: =J$5*((K$7*I8)+(K$8*I7)) + $U$7 -> 6499.313361 | M8: 2.978019747e-20 | N8: =L$5*((M$7*I8)+(M$8*I7)) + $U$7 -> 6090.546875 | O8: 0 | P8: =Q$5*((O$7*I8)+(O$8*I7)) + $U$7 -> 6090.546875 | Q8: 24 | R8: 24
D9: 1 | E9: 973.9810181 | F9: 8967.249023 | G9: 7357.620361 | H9: 2590904.432 | I9: 0.8731803741 | J9: 2 | K9: 0.1453004795 | L9: =J$5*((K$7*I9)+(K$8*I8)+(K$9*I7)) + $U$7 -> 7357.620361 | M9: 2.418701698e-18 | N9: =L$5*((M$7*I9)+(M$8*I8)+(M$9*I7)) + $U$7 -> 6090.546875 | O9: 0 | P9: =Q$5*((O$7*I9)+(O$8*I8)+(O$9*I7)) + $U$7 -> 6090.546875
D10: 1 | E10: 974.2940063 | F10: 9838.530273 | G10: 8663.211481 | H10: 1381374.265 | I10: 0.5393202526 | J10: 3 | K10: 0.2082490553 | L10: =J$5*((K$7*I10)+(K$8*I9)+(K$9*I8)+(K$10*I7)) + $U$7 -> 8663.211481 | M10: 1.252681407e-16 | N10: =L$5*((M$7*I10)+(M$8*I9)+(M$9*I8)+(M$10*I7)) + $U$7 -> 6090.546875 | O10: 0 | P10: =Q$5*((O$7*I10)+(O$8*I9)+(O$9*I8)+(O$10*I7)) + $U$7 -> 6090.546875
D11: 1 | E11: 974.6209717 | F11: 10039.84375 | G11: 9941.817886 | H11: 9609.069964 | I11: 0.2620620774 | J11: 4 | K11: 0.2136765729 | L11: =J$5*((K$7*I11)+(K$8*I10)+(K$9*I9)+(K$10*I8)+(K$11*I7)) + $U$7 -> 9941.817886 | M11: 4.644691045e-15 | N11: =L$5*((M$7*I11)+(M$8*I10)+(M$9*I9)+(M$10*I8)+(M$11*I7)) + $U$7 -> 6090.546875 | O11: 0 | P11: =Q$5*((O$7*I11)+(O$8*I10)+(O$9*I9)+(O$10*I8)+(O$11*I7)) + $U$7 -> 6090.546875
D12: 1 | E12: 974.9729614 | F12: 9538.979492 | G12: 10627.2554 | H12: 1184344.459 | I12: 0.1059166387 | J12: 5 | K12: 0.1670442255 | L12: =J$5*((K$7*I12)+(K$8*I11)+(K$9*I10)+(K$10*I9)+(K$11*I8)+(K$12*I7)) + $U$7 -> 10627.2554 | M12: 1.312120492e-13 | N12: =L$5*((M$7*I12)+(M$8*I11)+(M$9*I10)+(M$10*I9)+(M$11*I8)+(M$12*I7)) + $U$7 -> 6090.546875 | O12: 0 | P12: =Q$5*((O$7*I12)+(O$8*I11)+(O$9*I10)+(O$10*I9)+(O$11*I8)+(O$12*I7)) + $U$7 -> 6090.546875
D13: 1 | E13: 975.3079834 | F13: 7862.591797 | G13: 10473.64293 | H13: 6817588.007 | I13: 0.03684182159 | J13: 6 | K13: 0.1033828223 | L13: =J$5*((K$7*I13)+(K$8*I12)+(K$9*I11)+(K$10*I10)+(K$11*I9)+(K$12*I8)+(K$13*I7)) + $U$7 -> 10473.64292 | M13: 2.934492235e-12 | N13: =L$5*((M$7*I13)+(M$8*I12)+(M$9*I11)+(M$10*I10)+(M$11*I9)+(M$12*I8)+(M$13*I7)) + $U$7 -> 6090.546881 | O13: 0 | P13: =Q$5*((O$7*I13)+(O$8*I12)+(O$9*I11)+(O$10*I10)+(O$11*I9)+(O$12*I8)+(O$13*I7)) + $U$7 -> 6090.546875
D14: 1 | E14: 975.6430054 | F14: 10697.1543 | G14: 9665.115548 | H14: 1065103.98 | I14: 0.01128682533 | J14: 7 | K14: 0.05195620425 | L14: =J$5*((K$7*I14)+(K$8*I13)+(K$9*I12)+(K$10*I11)+(K$11*I10)+(K$12*I9)+(K$13*I8)+(K$14*I7)) + $U$7 -> 9665.115434 | M14: 5.329228303e-11 | N14: =L$5*((M$7*I14)+(M$8*I13)+(M$9*I12)+(M$10*I11)+(M$11*I10)+(M$12*I9)+(M$13*I8)+(M$14*I7)) + $U$7 -> 6090.546989 | O14: 0 | P14: =Q$5*((O$7*I14)+(O$8*I13)+(O$9*I12)+(O$10*I11)+(O$11*I10)+(O$12*I9)+(O$13*I8)+(O$14*I7)) + $U$7 -> 6090.546875
D15: 1 | E15: 975.9699707 | F15: 9686 | G15: 8604.109586 | H15: 1170486.867 | I15: 0.003097054662 | J15: 8 | K15: 0.02157798645 | L15: =J$5*((K$7*I15)+(K$8*I14)+(K$9*I13)+(K$10*I12)+(K$11*I11)+(K$12*I10)+(K$13*I9)+(K$14*I8)+(K$15*I7)) + $U$7 -> 8604.107846 | M15: 7.997977095e-10 | N15: =L$5*((M$7*I15)+(M$8*I14)+(M$9*I13)+(M$10*I12)+(M$11*I11)+(M$12*I10)+(M$13*I9)+(M$14*I8)+(M$15*I7)) + $U$7 -> 6090.548615 | O15: 0 | P15: =Q$5*((O$7*I15)+(O$8*I14)+(O$9*I13)+(O$10*I12)+(O$11*I11)+(O$12*I10)+(O$13*I9)+(O$14*I8)+(O$15*I7)) + $U$7 -> 6090.546875
D16: 1 | E16: 976.2979736 | F16: 8031.963867 | G16: 7639.670006 | H16: 153894.4736 | I16: 0.0007709761029 | J16: 9 | K16: 0.00749726662 | L16: =J$5*((K$7*I16)+(K$8*I15)+(K$9*I14)+(K$10*I13)+(K$11*I12)+(K$12*I11)+(K$13*I10)+(K$14*I9)+(K$15*I8)+(K$16*I7)) + $U$7 -> 7639.647697 | M16: 1.004186839e-08 | N16: =L$5*((M$7*I16)+(M$8*I15)+(M$9*I14)+(M$10*I13)+(M$11*I12)+(M$12*I11)+(M$13*I10)+(M$14*I9)+(M$15*I8)+(M$16*I7)) + $U$7 -> 6090.569184 | O16: 0 | P16: =Q$5*((O$7*I16)+(O$8*I15)+(O$9*I14)+(O$10*I13)+(O$11*I12)+(O$12*I11)+(O$13*I10)+(O$14*I9)+(O$15*I8)+(O$16*I7)) + $U$7 -> 6090.546875
D17: 1 | E17: 976.6389771 | F17: 7931.549316 | G17: 6938.472329 | H17: 986201.9029 | I17: 0.0001758959809 | J17: 10 | K17: 0.002197904312 | L17: =J$5*((K$8*I16)+(K$9*I15)+(K$10*I14)+(K$11*I13)+(K$12*I12)+(K$13*I11)+(K$14*I10)+(K$15*I9)+(K$16*I8)+(K$17*I7)) + $U$7 -> 6938.230333 | M17: 1.0638066e-07 | N17: =L$5*((M$8*I16)+(M$9*I15)+(M$10*I14)+(M$11*I13)+(M$12*I12)+(M$13*I11)+(M$14*I10)+(M$15*I9)+(M$16*I8)+(M$17*I7)) + $U$7 -> 6090.788871 | O17: 0 | P17: =Q$5*((O$8*I16)+(O$9*I15)+(O$10*I14)+(O$11*I13)+(O$12*I12)+(O$13*I11)+(O$14*I10)+(O$15*I9)+(O$16*I8)+(O$17*I7)) + $U$7 -> 6090.546875
D18: 1 | E18: 976.9520264 | F18: 7519.054199 | G18: 6508.972408 | H18: 1020265.225 | I18: 3.708319358e-05 | J18: 11 | K18: 0.0005467121149 | L18: =J$5*((K$9*I16)+(K$10*I15)+(K$11*I14)+(K$12*I13)+(K$13*I12)+(K$14*I11)+(K$15*I10)+(K$16*I9)+(K$17*I8)+(K$18*I7)) + $U$7 -> 6506.737641 | M18: 9.562136229e-07 | N18: =L$5*((M$9*I16)+(M$10*I15)+(M$11*I14)+(M$12*I13)+(M$13*I12)+(M$14*I11)+(M$15*I10)+(M$16*I9)+(M$17*I8)+(M$18*I7)) + $U$7 -> 6092.781642 | O18: 0 | P18: =Q$5*((O$9*I16)+(O$10*I15)+(O$11*I14)+(O$12*I13)+(O$13*I12)+(O$14*I11)+(O$15*I10)+(O$16*I9)+(O$17*I8)+(O$18*I7)) + $U$7 -> 6090.546875
D19: 1 | E19: 977.2709351 | F19: 9512.375 | G19: 6293.044395 | H19: 10364089.55 | I19: 7.274058225e-06 | J19: 12 | K19: 0.0001157538302 | L19: =J$5*((K$10*I16)+(K$11*I15)+(K$12*I14)+(K$13*I13)+(K$14*I12)+(K$15*I11)+(K$16*I10)+(K$17*I9)+(K$18*I8)+(K$19*I7)) + $U$7 -> 6275.406301 | M19: 7.316003909e-06 | N19: =L$5*((M$10*I16)+(M$11*I15)+(M$12*I14)+(M$13*I13)+(M$14*I12)+(M$15*I11)+(M$16*I10)+(M$17*I9)+(M$18*I8)+(M$19*I7)) + $U$7 -> 6108.184969 | O19: 0 | P19: =Q$5*((O$10*I16)+(O$11*I15)+(O$12*I14)+(O$13*I13)+(O$14*I12)+(O$15*I11)+(O$16*I10)+(O$17*I9)+(O$18*I8)+(O$19*I7)) + $U$7 -> 6090.546875
D20: 1 | E20: 977.605957 | F20: 10839.07031 | G20: 6284.491468 | H20: 20744188.45 | I20: 1.335240228e-06 | J20: 13 | K20: 2.088275678e-05 | L20: =J$5*((K$11*I16)+(K$12*I15)+(K$13*I14)+(K$14*I13)+(K$15*I12)+(K$16*I11)+(K$17*I10)+(K$18*I9)+(K$19*I8)+(K$20*I7)) + $U$7 -> 6165.27344 | M20: 4.769454594e-05 | N20: =L$5*((M$11*I16)+(M$12*I15)+(M$13*I14)+(M$14*I13)+(M$15*I12)+(M$16*I11)+(M$17*I10)+(M$18*I9)+(M$19*I8)+(M$20*I7)) + $U$7 -> 6209.764903 | O20: 0 | P20: =Q$5*((O$11*I16)+(O$12*I15)+(O$13*I14)+(O$14*I13)+(O$15*I12)+(O$16*I11)+(O$17*I10)+(O$18*I9)+(O$19*I8)+(O$20*I7)) + $U$7 -> 6090.546875
D21: 1 | E21: 977.940979 | F21: 10005.10352 | G21: 6808.411318 | H21: 10218841 | I21: 2.304952462e-07 | J21: 14 | K21: 3.206764344e-06 | L21: =J$5*((K$12*I16)+(K$13*I15)+(K$14*I14)+(K$15*I13)+(K$16*I12)+(K$17*I11)+(K$18*I10)+(K$19*I9)+(K$20*I8)+(K$21*I7)) + $U$7 -> 6118.13077 | M21: 0.0002646611919 | N21: =L$5*((M$12*I16)+(M$13*I15)+(M$14*I14)+(M$15*I13)+(M$16*I12)+(M$17*I11)+(M$18*I10)+(M$19*I9)+(M$20*I8)+(M$21*I7)) + $U$7 -> 6780.827423 | O21: 0 | P21: =Q$5*((O$12*I16)+(O$13*I15)+(O$14*I14)+(O$15*I13)+(O$16*I12)+(O$17*I11)+(O$18*I10)+(O$19*I9)+(O$20*I8)+(O$21*I7)) + $U$7 -> 6090.546875
D22: 1 | E22: 978.276001 | F22: 17506.54102 | G22: 9518.893426 | H22: 63802514.01 | I22: 3.725606846e-08 | J22: 15 | K22: 4.178210858e-07 | L22: =J$5*((K$13*I16)+(K$14*I15)+(K$15*I14)+(K$16*I13)+(K$17*I12)+(K$18*I11)+(K$19*I10)+(K$20*I9)+(K$21*I8)+(K$22*I7)) + $U$7 -> 6099.849457 | M22: 0.001246108622 | N22: =L$5*((M$13*I16)+(M$14*I15)+(M$15*I14)+(M$16*I13)+(M$17*I12)+(M$18*I11)+(M$19*I10)+(M$20*I9)+(M$21*I8)+(M$22*I7)) + $U$7 -> 9509.590844 | O22: 0 | P22: =Q$5*((O$13*I16)+(O$14*I15)+(O$15*I14)+(O$16*I13)+(O$17*I12)+(O$18*I11)+(O$19*I10)+(O$20*I9)+(O$21*I8)+(O$22*I7)) + $U$7 -> 6090.546875
D23: 1 | E23: 978.6170044 | F23: 31151.19336 | G23: 20536.26603 | H23: 112676682.3 | I23: 0 | J23: 16 | K23: 4.593327871e-08 | L23: =J$5*((K$14*I16)+(K$15*I15)+(K$16*I14)+(K$17*I13)+(K$18*I12)+(K$19*I11)+(K$20*I10)+(K$21*I9)+(K$22*I8)+(K$23*I7)) + $U$7 -> 6093.406688 | M23: 0.004950343366 | N23: =L$5*((M$14*I16)+(M$15*I15)+(M$16*I14)+(M$17*I13)+(M$18*I12)+(M$19*I11)+(M$20*I10)+(M$21*I9)+(M$22*I8)+(M$23*I7)) + $U$7 -> 20533.40621 | O23: 0 | P23: =Q$5*((O$14*I16)+(O$15*I15)+(O$16*I14)+(O$17*I13)+(O$18*I12)+(O$19*I11)+(O$20*I10)+(O$21*I9)+(O$22*I8)+(O$23*I7)) + $U$7 -> 6090.546875
D24: 1 | E24: 978.9450073 | F24: 77792.17969 | G24: 57873.10837 | H24: 396769402.2 | I24: 0 | J24: 17 | K24: 4.224575521e-09 | L24: =J$5*((K$15*I16)+(K$16*I15)+(K$17*I14)+(K$18*I13)+(K$19*I12)+(K$20*I11)+(K$21*I10)+(K$22*I9)+(K$23*I8)+(K$24*I7)) + $U$7 -> 6091.344697 | M24: 0.01645255249 | N24: =L$5*((M$15*I16)+(M$16*I15)+(M$17*I14)+(M$18*I13)+(M$19*I12)+(M$20*I11)+(M$21*I10)+(M$22*I9)+(M$23*I8)+(M$24*I7)) + $U$7 -> 57872.31055 | O24: 0 | P24: =Q$5*((O$15*I16)+(O$16*I15)+(O$17*I14)+(O$18*I13)+(O$19*I12)+(O$20*I11)+(O$21*I10)+(O$22*I9)+(O$23*I8)+(O$24*I7)) + $U$7 -> 6090.546875
D25: 1 | E25: 979.2860107 | F25: 206543.9844 | G25: 162601.4314 | H25: 1930947959 | I25: 0 | J25: 18 | K25: 3.210873379e-10 | L25: =J$5*((K$16*I16)+(K$17*I15)+(K$18*I14)+(K$19*I13)+(K$20*I12)+(K$21*I11)+(K$22*I10)+(K$23*I9)+(K$24*I8)+(K$25*I7)) + $U$7 -> 6090.74766 | M25: 0.04518722962 | N25: =L$5*((M$16*I16)+(M$17*I15)+(M$18*I14)+(M$19*I13)+(M$20*I12)+(M$21*I11)+(M$22*I10)+(M$23*I9)+(M$24*I8)+(M$25*I7)) + $U$7 -> 162601.2306 | O25: 0 | P25: =Q$5*((O$16*I16)+(O$17*I15)+(O$18*I14)+(O$19*I13)+(O$20*I12)+(O$21*I11)+(O$22*I10)+(O$23*I9)+(O$24*I8)+(O$25*I7)) + $U$7 -> 6090.546875
D26: 1 | E26: 979.6140137 | F26: 450992.5625 | G26: 401365.2239 | H26: 2462872732 | I26: 0 | J26: 19 | K26: 1.981688528e-11 | L26: =J$5*((K$17*I16)+(K$18*I15)+(K$19*I14)+(K$20*I13)+(K$21*I12)+(K$22*I11)+(K$23*I10)+(K$24*I9)+(K$25*I8)+(K$26*I7)) + $U$7 -> 6090.592158 | M26: 0.1007790503 | N26: =L$5*((M$17*I16)+(M$18*I15)+(M$19*I14)+(M$20*I13)+(M$21*I12)+(M$22*I11)+(M$23*I10)+(M$24*I9)+(M$25*I8)+(M$26*I7)) + $U$7 -> 401365.1787 | O26: 0 | P26: =Q$5*((O$17*I16)+(O$18*I15)+(O$19*I14)+(O$20*I13)+(O$21*I12)+(O$22*I11)+(O$23*I10)+(O$24*I9)+(O$25*I8)+(O$26*I7)) + $U$7 -> 6090.546875
D27: 1 | E27: 979.9559937 | F27: 875645.125 | G27: 830964.5967 | H27: 1996349611 | I27: 0 | J27: 20 | K27: 9.682554945e-13 | L27: =J$5*((K$18*I16)+(K$19*I15)+(K$20*I14)+(K$21*I13)+(K$22*I12)+(K$23*I11)+(K$24*I10)+(K$25*I9)+(K$26*I8)+(K$27*I7)) + $U$7 -> 6090.555965 | M27: 0.1779373695 | N27: =L$5*((M$18*I16)+(M$19*I15)+(M$20*I14)+(M$21*I13)+(M$22*I12)+(M$23*I11)+(M$24*I10)+(M$25*I9)+(M$26*I8)+(M$27*I7)) + $U$7 -> 830964.5876 | O27: 0 | P27: =Q$5*((O$18*I16)+(O$19*I15)+(O$20*I14)+(O$21*I13)+(O$22*I12)+(O$23*I11)+(O$24*I10)+(O$25*I9)+(O$26*I8)+(O$27*I7)) + $U$7 -> 6090.546875
D28: 1 | E28: 980.2969971 | F28: 1376038.5 | G28: 1409472.67 | H28: 1117843732 | I28: 0 | J28: 21 | K28: 3.604501686e-14 | L28: =J$5*((K$19*I16)+(K$20*I15)+(K$21*I14)+(K$22*I13)+(K$23*I12)+(K$24*I11)+(K$25*I10)+(K$26*I9)+(K$27*I8)+(K$28*I7)) + $U$7 -> 6090.548488 | M28: 0.2393672655 | N28: =L$5*((M$19*I16)+(M$20*I15)+(M$21*I14)+(M$22*I13)+(M$23*I12)+(M$24*I11)+(M$25*I10)+(M$26*I9)+(M$27*I8)+(M$28*I7)) + $U$7 -> 1409472.669 | O28: 0 | P28: =Q$5*((O$19*I16)+(O$20*I15)+(O$21*I14)+(O$22*I13)+(O$23*I12)+(O$24*I11)+(O$25*I10)+(O$26*I9)+(O$27*I8)+(O$28*I7)) + $U$7 -> 6090.546875
D29: 1 | E29: 980.625 | F29: 1903733.25 | G29: 1923704.849 | H29: 398864763.6 | I29: 0 | J29: 22 | K29: 9.606349279e-16 | L29: =J$5*((K$20*I16)+(K$21*I15)+(K$22*I14)+(K$23*I13)+(K$24*I12)+(K$25*I11)+(K$26*I10)+(K$27*I9)+(K$28*I8)+(K$29*I7)) + $U$7 -> 6090.547126 | M29: 0.2305261665 | N29: =L$5*((M$20*I16)+(M$21*I15)+(M$22*I14)+(M$23*I13)+(M$24*I12)+(M$25*I11)+(M$26*I10)+(M$27*I9)+(M$28*I8)+(M$29*I7)) + $U$7 -> 1923704.849 | O29: 0 | P29: =Q$5*((O$20*I16)+(O$21*I15)+(O$22*I14)+(O$23*I13)+(O$24*I12)+(O$25*I11)+(O$26*I10)+(O$27*I9)+(O$28*I8)+(O$29*I7)) + $U$7 -> 6090.546875
D30: 1 | E30: 980.9586182 | F30: 2046722.25 | G30: 2081109.696 | H30: 1182496414 | I30: 0 | J30: 23 | K30: 1.632582358e-17 | L30: =J$5*((K$21*I16)+(K$22*I15)+(K$23*I14)+(K$24*I13)+(K$25*I12)+(K$26*I11)+(K$27*I10)+(K$28*I9)+(K$29*I8)+(K$30*I7)) + $U$7 -> 6090.546909 | M30: 0.1415726247 | N30: =L$5*((M$21*I16)+(M$22*I15)+(M$23*I14)+(M$24*I13)+(M$25*I12)+(M$26*I11)+(M$27*I10)+(M$28*I9)+(M$29*I8)+(M$30*I7)) + $U$7 -> 2081109.696 | O30: 0 | P30: =Q$5*((O$21*I16)+(O$22*I15)+(O$23*I14)+(O$24*I13)+(O$25*I12)+(O$26*I11)+(O$27*I10)+(O$28*I9)+(O$29*I8)+(O$30*I7)) + $U$7 -> 6090.546875
D31: 1 | E31: 981.2940674 | F31: 1781418 | G31: 1771037.592 | H31: 107752873.5 | I31: 0 | J31: 24 | K31: 1.329469638e-19 | L31: =J$5*((K$22*I16)+(K$23*I15)+(K$24*I14)+(K$25*I13)+(K$26*I12)+(K$27*I11)+(K$28*I10)+(K$29*I9)+(K$30*I8)+(K$31*I7)) + $U$7 -> 6090.546879 | M31: 0.04166054414 | N31: =L$5*((M$22*I16)+(M$23*I15)+(M$24*I14)+(M$25*I13)+(M$26*I12)+(M$27*I11)+(M$28*I10)+(M$29*I9)+(M$30*I8)+(M$31*I7)) + $U$7 -> 1771037.592 | O31: 0 | P31: =Q$5*((O$22*I16)+(O$23*I15)+(O$24*I14)+(O$25*I13)+(O$26*I12)+(O$27*I11)+(O$28*I10)+(O$29*I9)+(O$30*I8)+(O$31*I7)) + $U$7 -> 6090.546875
D32: 1 | E32: 981.6295166 | F32: 1234245.75 | G32: 1196199.774 | H32: 1447496263 | I32: 0 | J32: 25 | K32: 0 | L32: =J$5*((K$23*I16)+(K$24*I15)+(K$25*I14)+(K$26*I13)+(K$27*I12)+(K$28*I11)+(K$29*I10)+(K$30*I9)+(K$31*I8)+(K$32*I7)) + $U$7 -> 6090.546875 | M32: 0 | N32: =L$5*((M$23*I16)+(M$24*I15)+(M$25*I14)+(M$26*I13)+(M$27*I12)+(M$28*I11)+(M$29*I10)+(M$30*I9)+(M$31*I8)+(M$32*I7)) + $U$7 -> 1196199.774 | O32: 0 | P32: =Q$5*((O$23*I16)+(O$24*I15)+(O$25*I14)+(O$26*I13)+(O$27*I12)+(O$28*I11)+(O$29*I10)+(O$30*I9)+(O$31*I8)+(O$32*I7)) + $U$7 -> 6090.546875
D33: 1 | E33: 981.9649658 | F33: 690800.5 | G33: 660137.4596 | H33: 940222047.7 | I33: 0 | J33: 26 | K33: 0 | L33: =J$5*((K$24*I16)+(K$25*I15)+(K$26*I14)+(K$27*I13)+(K$28*I12)+(K$29*I11)+(K$30*I10)+(K$31*I9)+(K$32*I8)+(K$33*I7)) + $U$7 -> 6090.546875 | M33: 0 | N33: =L$5*((M$24*I16)+(M$25*I15)+(M$26*I14)+(M$27*I13)+(M$28*I12)+(M$29*I11)+(M$30*I10)+(M$31*I9)+(M$32*I8)+(M$33*I7)) + $U$7 -> 660137.4596 | O33: 0 | P33: =Q$5*((O$24*I16)+(O$25*I15)+(O$26*I14)+(O$27*I13)+(O$28*I12)+(O$29*I11)+(O$30*I10)+(O$31*I9)+(O$32*I8)+(O$33*I7)) + $U$7 -> 6090.546875
D34: 1 | E34: 982.300415 | F34: 330288.2188 | G34: 307722.2032 | H34: 509225057.3 | I34: 0 | J34: 27 | K34: 0 | L34: =J$5*((K$25*I16)+(K$26*I15)+(K$27*I14)+(K$28*I13)+(K$29*I12)+(K$30*I11)+(K$31*I10)+(K$32*I9)+(K$33*I8)+(K$34*I7)) + $U$7 -> 6090.546875 | M34: 0 | N34: =L$5*((M$25*I16)+(M$26*I15)+(M$27*I14)+(M$28*I13)+(M$29*I12)+(M$30*I11)+(M$31*I10)+(M$32*I9)+(M$33*I8)+(M$34*I7)) + $U$7 -> 307722.2032 | O34: 0 | P34: =Q$5*((O$25*I16)+(O$26*I15)+(O$27*I14)+(O$28*I13)+(O$29*I12)+(O$30*I11)+(O$31*I10)+(O$32*I9)+(O$33*I8)+(O$34*I7)) + $U$7 -> 6090.546875
D35: 1 | E35: 982.6358643 | F35: 138177.2344 | G35: 125703.8972 | H35: 155584140.8 | I35: 0 | J35: 28 | K35: 0 | L35: =J$5*((K$26*I16)+(K$27*I15)+(K$28*I14)+(K$29*I13)+(K$30*I12)+(K$31*I11)+(K$32*I10)+(K$33*I9)+(K$34*I8)+(K$35*I7)) + $U$7 -> 6090.546875 | M35: 0 | N35: =L$5*((M$26*I16)+(M$27*I15)+(M$28*I14)+(M$29*I13)+(M$30*I12)+(M$31*I11)+(M$32*I10)+(M$33*I9)+(M$34*I8)+(M$35*I7)) + $U$7 -> 125703.8972 | O35: 0 | P35: =Q$5*((O$26*I16)+(O$27*I15)+(O$28*I14)+(O$29*I13)+(O$30*I12)+(O$31*I11)+(O$32*I10)+(O$33*I9)+(O$34*I8)+(O$35*I7)) + $U$7 -> 6090.546875
D36: 1 | E36: 982.9713135 | F36: 48974.14453 | G36: 47641.91212 | H36: 1774843.197 | I36: 0 | J36: 29 | K36: 0 | L36: =J$5*((K$27*I16)+(K$28*I15)+(K$29*I14)+(K$30*I13)+(K$31*I12)+(K$32*I11)+(K$33*I10)+(K$34*I9)+(K$35*I8)+(K$36*I7)) + $U$7 -> 6090.546875 | M36: 0 | N36: =L$5*((M$27*I16)+(M$28*I15)+(M$29*I14)+(M$30*I13)+(M$31*I12)+(M$32*I11)+(M$33*I10)+(M$34*I9)+(M$35*I8)+(M$36*I7)) + $U$7 -> 47641.91212 | O36: 0 | P36: =Q$5*((O$27*I16)+(O$28*I15)+(O$29*I14)+(O$30*I13)+(O$31*I12)+(O$32*I11)+(O$33*I10)+(O$34*I9)+(O$35*I8)+(O$36*I7)) + $U$7 -> 6090.546875

Sheet Bimodal Help (hidden)
A1: Bimodal Deconvolution | B1: The bimodal (and trimodal) fitting functionality is for applying multiple binomial functions to fit mass envelopes containing distinct species. This should only be used if no reasonable fits can be achieved with a single binomial and possible spectral overlap has been taken into account. This proceedure utilizes the Solver add-in within excel for fitting (for more information see release notes).
A2: Proceedure | B2: To fit multiple binomials first process the data as you would normally but keep the peak height threshold low (5% or less) to try to get as much of the envelope recognized as possible. Alternatively it is possible (but not recommended) to use the raw spectral fitting for this, in which case run the preliminary analysis without the "use isotopic peak detection" option. Next, apply the binomial fitting to all the data. You may have to adjust the number of amides or check the 'optimize fits' box to achieve good fits. This should be gauged from a spectra that reflects a single species; the fully deuterated standard works best. After binomial fitting some spectra may be flagged as "bimoda" with red font. These are cases where the distribution was too wide to be fit with a single binomial function and may indicate the presence of a bimodal spectra.
A3: Proceedure cont. | B3: Next, go to the spectra that contains the bimodals and use the "Bimodal deconvolution" function to apply a 'double binomial' fit. Triple binomial fiting is also available but should be avoided unless there are clearly more than two species present. In some cases a good answer is not found (based on visual inspection). When this happens the initial fitting parametes (p(1), p(2), and weights) can be adjusted and the the fitting can be run again by calling the "solver" function in excel (found in the "Data" tab). The UN and TD samples should be left as a single binomial; if these do not fit well to a single function then check the data for overlap and make sure the correct number of amides are being used for the fitting. The keyboard shortcuts [Ctrl+Shift+"D"] and [Ctrl+Shift+"T"] can be used for applying a bimodal and trimodal fitting within the active sheet. The 'apply multimodal fit to all spectra' option allows you to fit all of the time points as bimodal, excluding the undeuterated and fully deuterated spectra.
A4: Proceedure cont. | B4: In some cases, better fits fits can be achieved if using a different number of amides for the two binomial components. These can be adjusted manually on within each worksheet (Cells "I3" "I22" and "I23") followed by re-running Solver.
A5: Summary Visualization | B5: Once all the speactra have been fitted properly the Summarize Bimodals button will import all of the new fits into the summary sheet and plot both sets of fits. The third plot on the right shows both the deuterium uptake (left y-axis) and fraction of the total population (right y-axis) and is useful for visualizing both the exchange profile and the relative population of each species. If there are multiple conditions (protein states) within the workbook, only data from the first series will be shown in the double y-axis plot.
A6: Statistical Analyses | B6: A new feature in HX Express v3 is the "perform bimodal statistic analyes". This option uses a statistical approach for calculating the level of confidence with the deconvolution of a bimodal mass spectra. This option should only be selected when using the "Double binomial" feature, it is not intended to be used for any other fitting routine. This feature was designed to use for spectra that appear bimodal, but the two components are sufficiently resolved to accurately deconvolute the two populations. When selected this option will perform additional analyses after the bimodal fitting to assess the certainty of the fits. This will result in three additional bar graphs presented on the right side that correspond to the level of certainty using three different metrics: Regression Metric, Delta Chi Metric, and Separation Metric. The green, orange, and red bars indicate a 99, 95 and 80% confidence interval. For a trustworthy doube binomial fit all of the metrics should be at least above the orange threshold. The resulting worksheet will also contain a direct error estimate for the relative intensity of the two populations which are as a percentage of the relative intensity value and shown in cells I32 and I33.
A7: Restrained Fitting | B7: It is possible to apply a double binomial or triple binomial fit where you restrain (fix) the population (p value) for each component. For this you fill out the fields for probability (values from 0-1) p1-p3 and the number of amides for each population (N1-N3). Leaving a zero or the cell empty for any of the p values will float (vary and find the best value) those values during minimization. When specifying the p value for different populations please keep in mind that p1 should be the least deuterated species and p2 (not p3) should be the most deuterated species. For any entry N1-N3 left blank or zero will automatically use the maximum (largest) number of amides used in the binomial fitting.
A8: Restrained Fitting cont. | B8: Restrained fitting can also utilize the 'apply multimodal fit to all spectra' option to apply the restrained double or triple fitting algorithm to all but the undeuterated and fully deuterated spectra. The data will then need to summarized using either the 'summarize double' or 'summarize triple' functions. Alternative, it is possible to shuffle between your worksheets and use the keyboard shortcuts: [Ctrl+Shift+"R"] for a restrained double, [Ctrl+Shift+"Y"] for a restrained triple fit.
A9: Tetramodal Fitting | B9: This version of HX Express has an experimental routine for performing tetramodal fitting (quadruple binomial). SInce there are so many variables with tetramodal fitting, this should only be used when there is solid evidence of more than three components in the data. For this, as much of the various p values (p1-p4) and number of amides (N1-N4) should be restrained. Just as with the double/triple restrained fitting, the p1 should be the least deuterated species and the p2 should be the most deuterated species. After applying the quadruple fit it will be necessary to run the 'summarize quadruple' to summarize the data onto the summary worksheet. It is possible to shuffle between your worksheets and use the keyboard shortcuts: [Ctrl+Shift+"Q"] to apply a restrained quadruple fit.
A10: Exponential Fitting | B10: When there is evidence of EX1 transition, or for pulse-labeling HDX-MS there is a 'Exponential (EX1)' fitting function that will fit either a single or double exponential function to the shift in the population fraction over time. This function only works on the summary worksheet after the bimodal summarization has been performed. A new plot will pop on the right side showing the transition of population fraction over time (data points) and the bets fit (dashed line). You can select which population you want to use for the exponential fitting (1, 2, or 3rd). The best-fit rate(s) are shown in cell U5 and U11 on the summary worksheet in bold. The units correspond to the same units used for the plots (sec, min, or hours).

Sheet HX-Express (hidden)

Sheet Analyze Spectra Help (hidden)
A1: Charge state | B1: The charge state (z) of a peptide can be determined by taking the reciprocal of the m/z spacing of the isotopic peaks in the spectrum. If z is set incorrectly, HX-Express will return an error message unless z is incorrectly set +1 for a spectrum of z > +1. In this case HX-Express will simply detect peaks with a spacing of 1 Da.
A2: Distribution width | B2: The width of the isotopic distribution is measured at a fraction of the intensity of the most intense peak (the base peak). This quantity is expressed a a percentage of base peak intensity (% BPI). It can be set between 10 and 90% BPI. Both the centroid and the isotopic distribution width will be measured over the portion of the spectrum defined by this quantity.
A3: Use isotopic peak detection | B3: For spectra with well-resolved isotopic peaks, this feature should be left ON. The width of the isotopic distribution will obtained from a measurement of an empirical peak-to-peak envelope. This feature can be turned off for spectra that lack isotopic peaks or where peak detection is problematic. HX-Express will bypass peak detection where necessary, but it may not be consistent across a spectrum series.
A4: Peak tolerances | B4: The intensity tolerance is used to discriminate against noise in the spectrum during peak identification. It is expressed as a percentage of the maximum peak in the spectrum (% BPI). The m/z tolerance specifies how close an istopic peak needs to its predicted m/z value. This quantity is expressed in terms of number of data points since the m/z data is discrete. The actual m/z tolernace will depend on the spacing of the m/z data.
A5: Deuterium uptake plot | B5: Deuterium uptake can be expressed in terms of absolute mass in (Da), relative deuterium uptake (Da), or percent deuteration. For relative deuterium uptake, the mass of the undeuterated control is subtracted from all other masses: m-m0%. Percent deuteration is computed according to the formula (m - m0%)/(m - m100%) x 100% where the subscripts 0% and 100% indicate the masses of an undeuterated and a fully deuterated control, respectively. HX-Express checks for the presence of these controls before determining deuterium uptake.
A6: Time units | B6: The output plots can be displayed in time units of seconds, minutes, or hours. The units do not need to match the input units.
A7: Plot width of isotopic distribution | B7: By default, HX-Express generates a plot of the width of the isotopic distribution as a function of time. This feature can be disabled. In which case, width values will not be reported on the Summary page.

Sheet Time Label Help (hidden)
A1: Add exchange time labels | B1: This feature automates the exchange time annotation of the spectra by adding labels in row 1 of the active worksheet. If row 1 contains data, the data will automatically be shifted down to row 2. Enter the numerical value of the exchange time in the box. Use the option buttons to set the time units. Click the enter button or press Enter on the keyboard to put the label into the highlighted cell. Use Previous/Next to navigate to different cells. When all spectra are labelled, click Finish. Cancel clears all annotations.

Sheet HX-Express Help (hidden)
A1: Using HX-Express | B1: All HX-Express features can be accessed from the HX-Expresss menu item.
A2: Worksheets vs. workbooks | B2: Each Excel file is a workbook. A workbook usually contains one or more worksheets. Different worksheets within a workbook may be accessed by clicking on the appropriate tab on the tabpane at the bottom of the Excel window.
A3: Naming a worksheet | B3: You can rename a worksheet by 1. Double clicking on the worksheet tab. 2. Right click on the tab and choose Rename. 3. Select the worksheet and use Format | Sheet | Rename.
A4: Import data / Data format | B4: It is important that spectra are well-smoothed before analysis. If the peak tops are noisy, HX-Express will encounter difficulty with peak identification. All spectra of a particular peptide, protein charge state envelope, or mass domain spectrum for a given state of the protein (wild type vs. mutant, bound vs. unbound, etc.) are grouped together on a single worksheet. The tab at the bottom is used to name that series. Each workbook can only contain data on a single peptide or protein. The data columns must contain only numeric data with no empty cells. The Sample Data worksheet in the HX-Express workbook gives an example of how the spectra should be formatted on the worksheet. Spectra are entered into the worksheet in two column (m/z, intensity) format. Do not leave empty columns between the data. Row 1 is used to note the exchange time. The exchange time label is placed over the first column (m/z) of each spectrum. Any mixture of time units (sec, min, hr) is acceptable and the spectra can be placed in any order. The "Add Exchange Time Labels" feature makes it easy to label the spectra. HX-Express does extensive data validation before the analysis is started.
A5: Analyze spectra | B5: Basic instructions: 1. Open the HX-Express workbook. This workbook must be opened every time you want to use HX-Express. You will not be able to modify this workbook and it is advisable to save it as a read-only file and to keep a backup. 2. Create a new workbook. 3. Create one named tab worksheet for each series of spectra for the same peptide or protein charge state (i.e., bound vs. unbound, etc.) 4. Paste in mass spectra in x, y column format into consecutive columns starting at row 1. Spectra should be of a single peptide or protein charge state at different exchange times. Use a narrow m/z range centered on the peptide/protein. 5. Repeat steps 3 and 4 for each series of spectra for a given peptide/protein. 6. Label the exchange times using the Add Exchange Times feature from the HX-Express pull down menu or you can type them directly into the worksheet. 7. If you wish, you can save the workbook containing the raw spectral data. (HX-Express will generate a new workbook for the analyzed spectra.) 8. Choose Analyze Spectra from the HX-Express menu. Set parameters and click OK. 9. HX-Express creates a new workbook with each spectrum on its own tabed worksheet page. A summary page containing the deuterium uptake plot and (if enabled) an isotopic distribution witdth plot. The resulting workbook can be reanalyzed, however, the HX-Express workbook needs to be open.
A6: Analyze single spectrum | B6: Performs an analysis of a single spectrum in x, y format in columns A and B. No summary report will be generated. This is a good way to evaluate how changes in the parameters affect the analysis. This feature will not overwrite other data on the worksheet.
A7: Reanalyzing data | B7: Data in the output workbook can be re-analyzed using the "Analyze Spectra" menu item. If necessary, the spectra in the individual worksheets can be edited/replaced using standard Excel operations. To protect a worksheet from "damage", HX-Express turns on Excel's worksheet protection feature when it creates the output workbook. To allow editing turn off the protection on the worksheet using Tools | Protection | Unprotect sheet. After editing a spectrum, make sure that the data starts in row 1, that it is in ascending m/z order, and that there are no blank cells in the data.
A8: Get spectra from MassLynx | B8: Spectra can be acquired directly from the Spectrum window of MassLynx. They are acquired in order from the top spectrum ("last" according to MassLynx convention) to the bottom spectrum ("first" according to MassLynx convention). Choose a narrow m/z region encompassing the peptide of interest. This feature probably won't work if the Spectra window within MassLynx is minimized. This feature will automate the creation of new worksheets or workbooks for the spectra and it can be accessed from any Excel window.
A9: Get spectra from MassLynx (cont) | B9: The timing labels can be automatically read from an existing workbook titled "timing.xls" or "timing.xlsx". If the import timing box is checked HX-express will attempt to import the time labels from this sheet.
A10: Get spectra from MassLynx (cont) | B10: With windows 7 (and beyond) the get spectra function requires a delay to allow data to be transferred to the clipboard. This will vary by computer but generally requires a 350msec delay. If there are errors or spuriuos data imported from MassLynx try extending the delay time. For Windows XP this can be left at "0".
A11: Save charge state | B11: Use this optional feature to store a charge state in a workbook containing unprocessed spectra. This can be useful if you are importing a large amount of data for subsequent analysis. When HX-Express analyzes a workbook with a stored charge state, it uses this charge state as the default value.
A12: Macro security | B12: The first time HX-Express is opened, you may get an error message that the macros are disabled because the security level is set to High or Very High. You will need to reset it to Medium (recommended) or Low (not recommended) in order to use HX-Express. Under Tools | Macro | Security, set the Security Level to Medium or Low and Click OK. Close this workbook and reopen it. At the Medium security level, you will be prompted to Enable macros every time any workbook containing macros is opened. At the Low security level, macros will always be enabled without a prompt. If you can read this help item in a Help window, it means that the macros are running and your security settings are correct.
A13: Running macros (advanced) | B13: Do not attempt to directly access macros from Tools | Macro | Macros... unless you have read the source code and you know which macros to access. Many of the macros in the VBA source code are not designed for direct access. The HX-Express workbook could be corrupted by running some macros.
A14: New features in version 2 | B14: Updates to HX-Express as of version 2.0 - Delay function for importing data directly from MassLynx in Win 7 (32 or 64 bit) - Option of importing time labels from an existing workbook when pulling data from MassLynx - Binomial fitting of exchange data (uses Solver and Analysis ToolPak add-ins within Excel) - Bimodal deconvolution with a double or triple binomial fitting scheme - Bubble plots to visualize bimodal exchange data
A15: License Agreement | B15: This program is free software; you can redistribute it and/or modify it under the terms of the GNU General Public License as published by the Free Software Foundation; either version 2 of the License, or (at your option) any later version. This program is distributed in the hope that it will be useful, but WITHOUT ANY WARRANTY; without even the implied warranty of MERCHANTABILITY or FITNESS FOR A PARTICULAR PURPOSE. The GNU General Public License can be viewed by clicking the "View License" button on the startup screen. The startup screen may be accessed by choosing the "About HX-Express" item on the "HX-Express" menu. You should have received a copy of the GNU General Public License along with this program; if not, write to the Free Software Foundation, Inc., 51 Franklin Street, Fifth Floor, Boston, MA 02110-1301, USA.

Sheet GNU GPL (hidden)
A1: Title | B1: GNU GENERAL PUBLIC LICENSE Version 2, June 1991 Copyright (C) 1989, 1991 Free Software Foundation, Inc., 51 Franklin Street, Fifth Floor, Boston, MA 02110-1301 USA Everyone is permitted to copy and distribute verbatim copies of this license document, but changing it is not allowed.
A2: Preamble | B2: Preamble The licenses for most software are designed to take away your freedom to share and change it. By contrast, the GNU General Public License is intended to guarantee your freedom to share and change free software--to make sure the software is free for all its users. This General Public License applies to most of the Free Software Foundation's software and to any other program whose authors commit to using it. (Some other Free Software Foundation software is covered by the GNU Lesser General Public License instead.) You can apply it to your programs, too. When we speak of free software, we are referring to freedom, not price. Our General Public Licenses are designed to make sure that you have the freedom to distribute copies of free software (and charge for this service if you wish), that you receive source code or can get it if you want it, that you can change the software or use pieces of it in new free programs; and that you know you can do these things. To protect your rights, we need to make restrictions that forbid anyone to deny you these rights or to ask you to surrender the rights. These restrictions translate to certain responsibilities for you if you distribute copies of the software, or if you modify it. For example, if you distribute copies of such a program, whether gratis or for a fee, you must give the recipients all the rights that you have. You must make sure that they, too, receive or can get the source code. And you must show them these terms so they know their rights. We protect your rights with two steps: (1) copyright the software, and (2) offer you this license which gives you legal permission to copy, distribute and/or modify the software. Also, for each author's protection and ours, we want to make certain that everyone understands that there is no warranty for this free software. If the software is modified by someone else and passed on, we want its recipients to know that what they have is not the original, so that any problems introduced by others will not reflect on the original authors' reputations. Finally, any free program is threatened constantly by software patents. We wish to avoid the danger that redistributors of a free program will individually obtain patent licenses, in effect making the program proprietary. To prevent this, we have made it clear that any patent must be licensed for everyone's free use or not licensed at all. The precise terms and conditions for copying, distribution and modification follow.
A3: GNU General Public License | B3: GNU GENERAL PUBLIC LICENSE TERMS AND CONDITIONS FOR COPYING, DISTRIBUTION AND MODIFICATION 0. This License applies to any program or other work which contains a notice placed by the copyright holder saying it may be distributed under the terms of this General Public License. The "Program", below, refers to any such program or work, and a "work based on the Program" means either the Program or any derivative work under copyright law: that is to say, a work containing the Program or a portion of it, either verbatim or with modifications and/or translated into another language. (Hereinafter, translation is included without limitation in the term "modification".) Each licensee is addressed as "you". Activities other than copying, distribution and modification are not covered by this License; they are outside its scope. The act of running the Program is not restricted, and the output from the Program is covered only if its contents constitute a work based on the Program (independent of having been made by running the Program). Whether that is true depends on what the Program does. 1. You may copy and distribute verbatim copies of the Program's source code as you receive it, in any medium, provided that you conspicuously and appropriately publish on each copy an appropriate copyright notice and disclaimer of warranty; keep intact all the notices that refer to this License and to the absence of any warranty; and give any other recipients of the Program a copy of this License along with the Program. You may charge a fee for the physical act of transferring a copy, and you may at your option offer warranty protection in exchange for a fee. 2. You may modify your copy or copies of the Program or any portion of it, thus forming a work based on the Program, and copy and distribute such modifications or work under the terms of Section 1 above, provided that you also meet all of these conditions: a) You must cause the modified files to carry prominent notices stating that you changed the files and the date of any change. b) You must cause any work that you distribute or publish, that in whole or in part contains or is derived from the Program or any part thereof, to be licensed as a whole at no charge to all third parties under the terms of this License. c) If the modified program normally reads commands interactively when run, you must cause it, when started running for such interactive use in the most ordinary way, to print or display an announcement including an appropriate copyright notice and a notice that there is no warranty (or else, saying that you provide a warranty) and that users may redistribute the program under these conditions, and telling the user how to view a copy of this License. (Exception: if the Program itself is interactive but does not normally print such an announcement, your work based on the Program is not required to print an announcement.) These requirements apply to the modified work as a whole. If identifiable sections of that work are not derived from the Program, and can be reasonably considered independent and separate works in themselves, then this License, and its terms, do not apply to those sections when you distribute them as separate works. But when you distribute the same sections as part of a whole which is a work based on the Program, the distribution of the whole must be on the terms of this License, whose permissions for other licensees extend to the entire whole, and thus to each and every part regardless of who wrote it. Thus, it is not the intent of this section to claim rights or contest your rights to work written entirely by you; rather, the intent is to exercise the right to control the distribution of derivative or collective works based on the Program. In addition, mere aggregation of another work not based on the Program with the Program (or with a work based on the Program) on a volume of a storage or distribution medium does not bring the other work under the scope of this License. 3. You may copy and distribute the Program (or a work based on it, under Section 2) in object code or executable form under the terms of Sections 1 and 2 above provided that you also do one of the following: a) Accompany it with the complete corresponding machine-readable source code, which must be distributed under the terms of Sections 1 and 2 above on a medium customarily used for software interchange; or, b) Accompany it with a written offer, valid for at least three years, to give any third party, for a charge no more than your cost of physically performing source distribution, a complete machine-readable copy of the corresponding source code, to be distributed under the terms of Sections 1 and 2 above on a medium customarily used for software interchange; or, c) Accompany it with the information you received as to the offer to distribute corresponding source code. (This alternative is allowed only for noncommercial distribution and only if you received the program in object code or executable form with such an offer, in accord with Subsection b above.) The source code for a work means the preferred form of the work for making modifications to it. For an executable work, complete source code means all the source code for all modules it contains, plus any associated interface definition files, plus the scripts used to control compilation and installation of the executable. However, as a special exception, the source code distributed need not include anything that is normally distributed (in either source or binary form) with the major components (compiler, kernel, and so on) of the operating system on which the executable runs, unless that component itself accompanies the executable. If distribution of executable or object code is made by offering access to copy from a designated place, then offering equivalent access to copy the source code from the same place counts as distribution of the source code, even though third parties are not compelled to copy the source along with the object code. 4. You may not copy, modify, sublicense, or distribute the Program except as expressly provided under this License. Any attempt otherwise to copy, modify, sublicense or distribute the Program is void, and will automatically terminate your rights under this License. However, parties who have received copies, or rights, from you under this License will not have their licenses terminated so long as such parties remain in full compliance. 5. You are not required to accept this License, since you have not signed it. However, nothing else grants you permission to modify or distribute the Program or its derivative works. These actions are prohibited by law if you do not accept this License. Therefore, by modifying or distributing the Program (or any work based on the Program), you indicate your acceptance of this License to do so, and all its terms and conditions for copying, distributing or modifying the Program or works based on it. 6. Each time you redistribute the Program (or any work based on the Program), the recipient automatically receives a license from the original licensor to copy, distribute or modify the Program subject to these terms and conditions. You may not impose any further restrictions on the recipients' exercise of the rights granted herein. You are not responsible for enforcing compliance by third parties to this License. 7. If, as a consequence of a court judgment or allegation of patent infringement or for any other reason (not limited to patent issues), conditions are imposed on you (whether by court order, agreement or otherwise) that contradict the conditions of this License, they do not excuse you from the conditions of this License. If you cannot distribute so as to satisfy simultaneously your obligations under this License and any other pertinent obligations, then as a consequence you may not distribute the Program at all. For example, if a patent license would not permit royalty-free redistribution of the Program by all those who receive copies directly or indirectly through you, then the only way you could satisfy both it and this License would be to refrain entirely from distribution of the Program. If any portion of this section is held invalid or unenforceable under any particular circumstance, the balance of the section is intended to apply and the section as a whole is intended to apply in other circumstances. It is not the purpose of this section to induce you to infringe any patents or other property right claims or to contest validity of any such claims; this section has the sole purpose of protecting the integrity of the free software distribution system, which is implemented by public license practices. Many people have made generous contributions to the wide range of software distributed through that system in reliance on consistent application of that system; it is up to the author/donor to decide if he or she is willing to distribute software through any other system and a licensee cannot impose that choice. This section is intended to make thoroughly clear what is believed to be a consequence of the rest of this License. 8. If the distribution and/or use of the Program is restricted in certain countries either by patents or by copyrighted interfaces, the original copyright holder who places the Program under this License may add an explicit geographical distribution limitation excluding those countries, so that distribution is permitted only in or among countries not thus excluded. In such case, this License incorporates the limitation as if written in the body of this License. 9. The Free Software Foundation may publish revised and/or new versions of the General Public License from time to time. Such new versions will be similar in spirit to the present version, but may differ in detail to address new problems or concerns. Each version is given a distinguishing version number. If the Program specifies a version number of this License which applies to it and "any later version", you have the option of following the terms and conditions either of that version or of any later version published by the Free Software Foundation. If the Program does not specify a version number of this License, you may choose any version ever published by the Free Software Foundation. 10. If you wish to incorporate parts of the Program into other free programs whose distribution conditions are different, write to the author to ask for permission. For software which is copyrighted by the Free Software Foundation, write to the Free Software Foundation; we sometimes make exceptions for this. Our decision will be guided by the two goals of preserving the free status of all derivatives of our free software and of promoting the sharing and reuse of software generally. NO WARRANTY 11. BECAUSE THE PROGRAM IS LICENSED FREE OF CHARGE, THERE IS NO WARRANTY FOR THE PROGRAM, TO THE EXTENT PERMITTED BY APPLICABLE LAW. EXCEPT WHEN OTHERWISE STATED IN WRITING THE COPYRIGHT HOLDERS AND/OR OTHER PARTIES PROVIDE THE PROGRAM "AS IS" WITHOUT WARRANTY OF ANY KIND, EITHER EXPRESSED OR IMPLIED, INCLUDING, BUT NOT LIMITED TO, THE IMPLIED WARRANTIES OF MERCHANTABILITY AND FITNESS FOR A PARTICULAR PURPOSE. THE ENTIRE RISK AS TO THE QUALITY AND PERFORMANCE OF THE PROGRAM IS WITH YOU. SHOULD THE PROGRAM PROVE DEFECTIVE, YOU ASSUME THE COST OF ALL NECESSARY SERVICING, REPAIR OR CORRECTION. 12. IN NO EVENT UNLESS REQUIRED BY APPLICABLE LAW OR AGREED TO IN WRITING WILL ANY COPYRIGHT HOLDER, OR ANY OTHER PARTY WHO MAY MODIFY AND/OR REDISTRIBUTE THE PROGRAM AS PERMITTED ABOVE, BE LIABLE TO YOU FOR DAMAGES, INCLUDING ANY GENERAL, SPECIAL, INCIDENTAL OR CONSEQUENTIAL DAMAGES ARISING OUT OF THE USE OR INABILITY TO USE THE PROGRAM (INCLUDING BUT NOT LIMITED TO LOSS OF DATA OR DATA BEING RENDERED INACCURATE OR LOSSES SUSTAINED BY YOU OR THIRD PARTIES OR A FAILURE OF THE PROGRAM TO OPERATE WITH ANY OTHER PROGRAMS), EVEN IF SUCH HOLDER OR OTHER PARTY HAS BEEN ADVISED OF THE POSSIBILITY OF SUCH DAMAGES. END OF TERMS AND CONDITIONS
A4: How to Apply These Terms to Your New Programs | B4: How to Apply These Terms to Your New Programs If you develop a new program, and you want it to be of the greatest possible use to the public, the best way to achieve this is to make it free software which everyone can redistribute and change under these terms. To do so, attach the following notices to the program. It is safest to attach them to the start of each source file to most effectively convey the exclusion of warranty; and each file should have at least the "copyright" line and a pointer to where the full notice is found. <one line to give the program's name and a brief idea of what it does.> Copyright (C) <year> <name of author> This program is free software; you can redistribute it and/or modify it under the terms of the GNU General Public License as published by the Free Software Foundation; either version 2 of the License, or (at your option) any later version. This program is distributed in the hope that it will be useful, but WITHOUT ANY WARRANTY; without even the implied warranty of MERCHANTABILITY or FITNESS FOR A PARTICULAR PURPOSE. See the GNU General Public License for more details. You should have received a copy of the GNU General Public License along with this program; if not, write to the Free Software Foundation, Inc., 51 Franklin Street, Fifth Floor, Boston, MA 02110-1301 USA. Also add information on how to contact you by electronic and paper mail. If the program is interactive, make it output a short notice like this when it starts in an interactive mode: Gnomovision version 69, Copyright (C) year name of author Gnomovision comes with ABSOLUTELY NO WARRANTY; for details type `show w'. This is free software, and you are welcome to redistribute it under certain conditions; type `show c' for details. The hypothetical commands `show w' and `show c' should show the appropriate parts of the General Public License. Of course, the commands you use may be called something other than `show w' and `show c'; they could even be mouse-clicks or menu items--whatever suits your program. You should also get your employer (if you work as a programmer) or your school, if any, to sign a "copyright disclaimer" for the program, if necessary. Here is a sample; alter the names: Yoyodyne, Inc., hereby disclaims all copyright interest in the program `Gnomovision' (which makes passes at compilers) written by James Hacker. <signature of Ty Coon>, 1 April 1989 Ty Coon, President of Vice This General Public License does not permit incorporating your program into proprietary programs. If your program is a subroutine library, you may consider it more useful to permit linking proprietary applications with the library. If this is what you want to do, use the GNU Lesser General Public License instead of this License.

Sheet Error Log (hidden)
A1: Date | B1: Location | C1: Error Number | D1: Error Message

Sheet Analyze Binomial Help (hidden)
A1: Binomial Fitting | B1: The binomial fitting algorythm relies on the "Solver", "Analysis ToolPak", and "Analysis TooPak - VBA" add-ins within Excel. This can be installed from the Microsoft Office CD through Excel "Tools" "Add-Ins". If it is not present a "module not found" error will pop up during fitting. To include Solver as a reference for HX-Express open HX-Express and go to VBA (Alt+F11),. then under "Tools" and "References" Check the "Solver" and "atpvbaen.xls" boxes. If it is not listed try running solver in excel before adding it as a reference in HX-Express. On some systems it is necessary to run solver once before HX-express recognizes it.
A2: Number of Amides | B2: The number of slow exchanging amides needs to be specified for the binomial function. Changing the number of amides will affect the width of the binomial distribution. If the peptide sequence is provided and used for calculating the natural abundance isotopic distribution then this value can be left "0" and HX-Express will automatically calculate the number of amides based on the peptide sequence (and glycans).
A3: Number of Amides | B3: In some cases the number of amides for optimal fits will deviate from that predicted from the sequence. Some highly protected peptides may have residues that have yet to exchange at early timepoints, thereby not contributing to the binomial distribution. Alternatively, the presence of fast back-exchanging residues will also warrant a slightly lower number of amides for the best fits. Checking the "Optimize Fit" box for Number of Amides will float the value for the number of amides to find the best fit for each time point. If this is used then the final width plot will report the number of amides used for each spectrum. Using both the "Optimize Fit" and "Auto Estimate" functions at the same time is not recommended as it often results in strange binomial fits.
A4: Asymmetric Fitting | B4: Adjusting this term results in asymmetric weighted least-squares fitting in which the error for values below the resulting fit are scaled by the asymmetry value. For clean (non overlapped) data this term should be left at 1 (no asymmetry). In many cases a higher charged mass envelope will have a lower charge state overlapping contaminant. For this type of overlap a higher asymmetry value can be used to get a more accurate fit by forcing the binomial function to fit to the lower values (thus minimizing contribution of the overlapped peaks). The ideal value depends on the severity of the overlap, but typically the range is 2-10 (for raw spectral fitting it may be higher). The "Auto Estimate" option will perform iterative fits, steadily increasing the assymetry term until the fit no longer improves. The AutoAssymetry option will automatically repeat the fitting process while scaling the assymetry term, until the p value converges. For raw spectral fitting this may add significant time to the calculations.
A5: Natural Isotopic Distribution | B5: The fitting algorythm requires the distribution of the undeuterated spectra to calculate final resulting isotopic distrbutions for each binomial fit. This can either be obtained from the undeuterated spectrum (faster) or calculated from the peptide sequence. If there is evidence of overlap within the undeuterated mass list, or the signal is poor, the later option should be used. The calculation of the natural abundance isotopic distribution utilizes the "Analysis ToolPak - VBA" add-in within excel, therefore this needs to be enabled within Excel. In Excel File, "Options", "Add-Ins", "Manage Excel Add-ins" and add both "Analysis ToolPaks". For HX-express (Alt+F11 to enter VBA; select HXToolsProject; Then under "Tools" click "References" and check the "atpvbaen.xla" add-in.
A6: Glycopeptides | B6: The natural isotopic distribution can also be calculated for glycopeptides. For this check the "Add Glycosylation" box and add the appropriate number of Hexose (Mannose, Galactose, etc.), HexNAc (GlcNAc, GalNAc), DeoxyHexose (Fucose), and NeuAc (neuraminic acid) groups. For example, if the glycopeptide had a Man9 high-mannose glycan then you would need to add '9' in the hexose box and '2' in the HexNAc box, and check the "add glycosylation" box. These values are ignored if the "Caculate undeuterated mass envelope from peptide sequence" box is unchecked.
A7: Peptide Modifications | B7: For peptides that contain modifications, the "custom modification box" should be checked, and the chemical formula entered into the next field. Modications that add atoms can be entered directly, while modifications resulting in a loss of atoms should have a "-" as the first character followed by the chemical formula. Currenlyt only H, C, N, O, S, P, and Na atoms are supported, others will no be recognized.
A8: Fitting to the Raw Data | B8: Instead of fitting the binomial function to the isotopically peaked peaks, it is possible to fit the binomial to the raw spectra. This uses the natural abundance calculation from the sequence, guesses the binomial p from the centroid, reconstructs the theoretical spectra making each peak a guassian and uses Solver to minimize the fit to the raw data. For this, first analyse all spectra without the "use isotopic peak detection" option. The m/z threshold and instrument resolution will be adjusted slightly during fitting, but an initial guess is required. For a well calibrated Q-TOF these two values are in the range of 0.1 and 10,000 but is highly insrument dependent. Fitting to raw data is about 20 times slower, and should only be used for very noisy spectra where isotope recognition fails. Only minimal smoothing of the raw data is recommended for this analysis (4 x 2 Savitzky-Golay).
A9: Multiple Binomials | B9: When performing binomial fitting with the 'optimize fits" option, HX Express will automatically check to see if the best value for the number of amides. If this value is larger that either the number expected for the peptide sequence, or the number of amides obtained from a fully deuterated spectra, then it will atuomatically flag the spectra as bimodal and label the plot with red font. For data showing bimodal distributions a double or triple binomial can be used for the fitting. This can be used to re-fit spectra with multiple binomial distributions but only after a single binomial has been applied to all the data. (See Bimodal Help)
A10: Summary of Binomials | B10: The new Summary sheet will include the probabilities (p) and the relative deuterium uptake (or percent) calculated from the binomial fit. The relative deuterium uptake plot will show the fits with the conventional centroid fitting and the binomial fit. If you need to adjust anything among the worksheets to optimize the binomial fit you will need to first unlock the worksheets using the "unlock worksheets" in the HX Express menu otpions, perform the new optimization within the worksheets, and lastly to use the 're-summarize binomials" option from the main HX Express menu options to update the summary sheet.
A11: Cleaning up Raw Fitting | B11: The raw fitting routine generates dozens of columns of data, which can result in large file sizes (>10 MGBytes). It can also cause calculations to get sluggish on some systems. To keep the final resulting file low apply the "Clean up Raw Fitting" option under HXExpress after the fitting is complete. This also re-summarizes all the results, so it should be applied if any manual re-fitting was performed. If the "Compress worksheets" is checked then each worksheet will be immediately cleaned up right after the fitting procedure (recommended).
